Workbook

Sheet Interfaz
C5: POBLACIÓN ASIGNADA SEGÚN CENSOS INEI - RENIEC - PN - CNV - 2015
C10: RED INTEGRADA DE SALUD HUAURA OYÓN
A22: Elaboración: Área de Estadística - RIS Huaura Oyón.
A23: NOTA: LA POBLACION ESTIMADA DE EDADES SIMPLES Y GRUPOS DE EDAD DE DISTRITOS, CORRESPONDEN A CIFRAS REFERENCIALES HASTA OBTENER LAS CIFRAS DE LAS PROYECCIONES DEL INEI
A26: OFICINA DE GESTION DE LA INFORMACIÓN - MINISTERIO DE SALUD
R27: Versión1.030

Sheet Poblacion
C1: 1 | D1: 2 | E1: 3 | F1: 4 | G1: 5 | H1: 6 | I1: 7 | J1: 8 | K1: 9 | L1: 10 | M1: 11 | N1: 12 | O1: 13 | P1: 14 | Q1: 15 | R1: 16 | S1: 17 | T1: 18 | U1: 19 | V1: 20 | W1: 21 | X1: 22 | Y1: 23 | Z1: 24 | AA1: 25 | AB1: 26 | AC1: 27 | AD1: 28 | AE1: 29 | AF1: 30 | AG1: 31 | AH1: 32 | AI1: 33 | AJ1: 34 | AK1: 35 | AL1: 36 | AM1: 37 | AN1: 38 | AO1: 39 | AP1: 40 | AQ1: 41 | AR1: 42 | AS1: 43 | AT1: 44 | AU1: 45 | AV1: 46 | AW1: 47 | AX1: 48 | AY1: 49 | AZ1: 50 | BA1: 51 | BB1: 52 | BC1: 53 | BD1: 54 | BE1: 55 | BF1: 56 | BG1: 57 | BK1: 77 | BL1: 78 | BM1: 79 | BN1: 80 | BO1: 81 | BP1: 82 | BQ1: 83 | BR1: 84 | BS1: 85 | BT1: 86 | BU1: 87 | BV1: 88 | BW1: 89 | BX1: 90 | BY1: 91 | BZ1: 92 | CA1: 93 | CB1: 94 | CC1: 95 | CD1: 96 | CE1: 97 | CF1: 98 | CG1: 99 | CH1: 106 | CI1: 107 | CJ1: 108 | CK1: 109 | CL1: 110 | CM1: 111
C5: N° | E5: DIRECCION DE SALUD | F5: TOTAL GENERAL | H5: TOTAL MASCULINO | I5: TOTAL FEMENINO | K5: EDAD | M5: EDAD | O5: EDAD | Q5: EDAD | S5: EDAD | U5: EDAD | W5: EDAD | Y5: EDAD | AA5: EDAD | AC5: EDAD | AE5: EDAD | AG5: EDAD | AI5: EDAD | AK5: EDAD | AM5: EDAD | AO5: EDAD | AQ5: EDAD | AS5: EDAD | AU5: EDAD | AW5: EDAD | AY5: EDAD | BA5: NACIMIENTOS | BB5: 28 DIAS | BC5: POBLACION FEMENINA TOTAL | BD5: POBLACION FEMENINA
A6: UBIGEO | E6: PROVINCIA | K6: 0 | M6: 1 | O6: 2 | Q6: 3 | S6: 4 | U6: 5 - 9 | W6: 10 - 14 | Y6: 15 - 19 | AA6: 20 - 24 | AC6: 25 - 29 | AE6: 30 - 34 | AG6: 35 - 39 | AI6: 40 - 44 | AK6: 45 - 49 | AM6: 50 - 54 | AO6: 55 - 59 | AQ6: 60 - 64 | AS6: 65 - 69 | AU6: 70- 74 | AW6: 75 - 79 | AY6: 80 - + | BD6: 10-14 | BE6: 15-19 | BF6: 20-49 | BG6: GESTANTES ESPERADAS
B7: Microredes | D7: RENAES | E7: DISTRITO | K7: M | L7: F | M7: M | N7: F | O7: M | P7: F | Q7: M | R7: F | S7: M | T7: F | U7: M | V7: F | W7: M | X7: F | Y7: M | Z7: F | AA7: M | AB7: F | AC7: M | AD7: F | AE7: M | AF7: F | AG7: M | AH7: F | AI7: M | AJ7: F | AK7: M | AL7: F | AM7: M | AN7: F | AO7: M | AP7: F | AQ7: M | AR7: F | AS7: M | AT7: F | AU7: M | AV7: F | AW7: M | AX7: F | AY7: M | AZ7: F
A8: 150000 | C8: 1 | E8: HUAURA - OYON | F8: 242957 | H8: 120300 | I8: 122657 | K8: 2153 | L8: 2195 | M8: 2053 | N8: 2094 | O8: 1989 | P8: 2027 | Q8: 1956 | R8: 1995 | S8: 1951 | T8: 1989 | U8: 10264 | V8: 10465 | W8: 11480 | X8: 11705 | Y8: 10914 | Z8: 11128 | AA8: 10591 | AB8: 10798 | AC8: 9036 | AD8: 9213 | AE8: 8616 | AF8: 8785 | AG8: 8649 | AH8: 8818 | AI8: 7360 | AJ8: 7504 | AK8: 6777 | AL8: 6910 | AM8: 6044 | AN8: 6163 | AO8: 5157 | AP8: 5258 | AQ8: 4325 | AR8: 4410 | AS8: 3580 | AT8: 3651 | AU8: 3023 | AV8: 3082 | AW8: 2153 | AX8: 2195 | AY8: 2229 | AZ8: 2272 | BA8: 4474 | BB8: 332 | BC8: 120083 | BD8: 11223 | BE8: 10733 | BF8: 50931 | BG8: 5541
A9: 150800 | C9: 2 | D9: 150800 | E9: PROVINCIA HUAURA | F9: 219059 | H9: 108466 | I9: 110593 | K9: 1898 | L9: 1936 | M9: 1808 | N9: 1843 | O9: 1749 | P9: 1784 | Q9: 1720 | R9: 1754 | S9: 1716 | T9: 1750 | U9: 9051 | V9: 9229 | W9: 10239 | X9: 10440 | Y9: 9962 | Z9: 10157 | AA9: 9683 | AB9: 9872 | AC9: 8140 | AD9: 8299 | AE9: 7754 | AF9: 7906 | AG9: 7729 | AH9: 7881 | AI9: 6691 | AJ9: 6823 | AK9: 6138 | AL9: 6258 | AM9: 5530 | AN9: 5638 | AO9: 4729 | AP9: 4821 | AQ9: 3981 | AR9: 4059 | AS9: 3232 | AT9: 3296 | AU9: 2740 | AV9: 2793 | AW9: 1928 | AX9: 1966 | AY9: 2048 | AZ9: 2088 | BA9: 3924 | BB9: 293 | BC9: 109036 | BD9: 10042 | BE9: 9820 | BF9: 46660 | BG9: 4858
A10: 150801 | C10: 3 | D10: 150802 | E10: DISTRITO HUACHO | F10: 58532 | H10: 28983 | I10: 29549 | K10: 460 | L10: 470 | M10: 433 | N10: 441 | O10: 414 | P10: 423 | Q10: 405 | R10: 412 | S10: 402 | T10: 409 | U10: 2133 | V10: 2174 | W10: 2482 | X10: 2530 | Y10: 2461 | Z10: 2510 | AA10: 2498 | AB10: 2547 | AC10: 2108 | AD10: 2149 | AE10: 2020 | AF10: 2060 | AG10: 2089 | AH10: 2129 | AI10: 1880 | AJ10: 1916 | AK10: 1775 | AL10: 1810 | AM10: 1715 | AN10: 1749 | AO10: 1441 | AP10: 1470 | AQ10: 1188 | AR10: 1212 | AS10: 981 | AT10: 1000 | AU10: 833 | AV10: 849 | AW10: 611 | AX10: 623 | AY10: 654 | AZ10: 666 | BA10: 943 | BB10: 71 | BC10: 30026 | BD10: 2506 | BE10: 2443 | BF10: 12933 | BG10: 1168
B11: 00 | C11: 4 | D11: 7639 | E11: HOSPITAL HUACHO | F11: 45070 | H11: 22316 | I11: 22754 | K11: 355 | L11: 361 | M11: 333 | N11: 340 | O11: 319 | P11: 325 | Q11: 311 | R11: 318 | S11: 309 | T11: 315 | U11: 1641 | V11: 1674 | W11: 1911 | X11: 1949 | Y11: 1895 | Z11: 1932 | AA11: 1924 | AB11: 1962 | AC11: 1624 | AD11: 1655 | AE11: 1556 | AF11: 1587 | AG11: 1609 | AH11: 1640 | AI11: 1447 | AJ11: 1476 | AK11: 1367 | AL11: 1393 | AM11: 1321 | AN11: 1346 | AO11: 1110 | AP11: 1131 | AQ11: 915 | AR11: 933 | AS11: 755 | AT11: 770 | AU11: 641 | AV11: 654 | AW11: 470 | AX11: 480 | AY11: 503 | AZ11: 513 | BA11: 726 | BB11: 55 | BC11: 23120 | BD11: 1930 | BE11: 1881 | BF11: 9958 | BG11: 899
B12: 02 | C12: 5 | D12: 5679 | E12: P.S. MANZANARES | F12: 13462 | H12: 6667 | I12: 6795 | K12: 106 | L12: 108 | M12: 100 | N12: 101 | O12: 96 | P12: 97 | Q12: 93 | R12: 95 | S12: 93 | T12: 94 | U12: 491 | V12: 501 | W12: 570 | X12: 582 | Y12: 566 | Z12: 578 | AA12: 574 | AB12: 585 | AC12: 484 | AD12: 494 | AE12: 464 | AF12: 473 | AG12: 480 | AH12: 489 | AI12: 432 | AJ12: 441 | AK12: 408 | AL12: 417 | AM12: 395 | AN12: 402 | AO12: 332 | AP12: 338 | AQ12: 273 | AR12: 279 | AS12: 226 | AT12: 230 | AU12: 192 | AV12: 195 | AW12: 141 | AX12: 143 | AY12: 151 | AZ12: 153 | BA12: 217 | BB12: 16 | BC12: 6906 | BD12: 576 | BE12: 562 | BF12: 2975 | BG12: 269
A13: 150802 | C13: 6 | D13: 150802 | E13: DISTRITO AMBAR | F13: 2737 | H13: 1355 | I13: 1382 | K13: 19 | L13: 20 | M13: 24 | N13: 24 | O13: 27 | P13: 28 | Q13: 30 | R13: 30 | S13: 32 | T13: 33 | U13: 170 | V13: 173 | W13: 149 | X13: 151 | Y13: 102 | Z13: 105 | AA13: 108 | AB13: 110 | AC13: 82 | AD13: 83 | AE13: 83 | AF13: 85 | AG13: 81 | AH13: 82 | AI13: 66 | AJ13: 68 | AK13: 76 | AL13: 77 | AM13: 67 | AN13: 69 | AO13: 55 | AP13: 56 | AQ13: 52 | AR13: 53 | AS13: 47 | AT13: 48 | AU13: 35 | AV13: 35 | AW13: 23 | AX13: 24 | AY13: 27 | AZ13: 28 | BA13: 44 | BB13: 3 | BC13: 1278 | BD13: 135 | BE13: 97 | BF13: 475 | BG13: 54
B14: 01 | C14: 7 | D14: 5680 | E14: C.S. AMBAR | F14: 1642 | H14: 813 | I14: 829 | K14: 11 | L14: 12 | M14: 14 | N14: 15 | O14: 16 | P14: 17 | Q14: 18 | R14: 18 | S14: 19 | T14: 20 | U14: 102 | V14: 103 | W14: 89 | X14: 91 | Y14: 61 | Z14: 62 | AA14: 65 | AB14: 67 | AC14: 49 | AD14: 50 | AE14: 50 | AF14: 51 | AG14: 49 | AH14: 49 | AI14: 40 | AJ14: 40 | AK14: 46 | AL14: 46 | AM14: 41 | AN14: 41 | AO14: 33 | AP14: 34 | AQ14: 31 | AR14: 32 | AS14: 28 | AT14: 29 | AU14: 21 | AV14: 21 | AW14: 14 | AX14: 14 | AY14: 16 | AZ14: 17 | BA14: 26 | BB14: 2 | BC14: 767 | BD14: 81 | BE14: 58 | BF14: 285 | BG14: 32
B15: 01 | C15: 8 | D15: 5681 | E15: P.S. AYNACA | F15: 1095 | H15: 543 | I15: 552 | K15: 8 | L15: 8 | M15: 9 | N15: 10 | O15: 11 | P15: 11 | Q15: 12 | R15: 12 | S15: 13 | T15: 13 | U15: 68 | V15: 70 | W15: 59 | X15: 61 | Y15: 42 | Z15: 42 | AA15: 43 | AB15: 43 | AC15: 33 | AD15: 33 | AE15: 33 | AF15: 34 | AG15: 32 | AH15: 33 | AI15: 27 | AJ15: 27 | AK15: 30 | AL15: 31 | AM15: 27 | AN15: 27 | AO15: 22 | AP15: 22 | AQ15: 21 | AR15: 21 | AS15: 19 | AT15: 19 | AU15: 14 | AV15: 14 | AW15: 9 | AX15: 10 | AY15: 11 | AZ15: 11 | BA15: 18 | BB15: 1 | BC15: 511 | BD15: 54 | BE15: 39 | BF15: 190 | BG15: 22
A16: 150803 | C16: 9 | D16: 150803 | E16: DISTRITO CARQUIN | F16: 6801 | H16: 3365 | I16: 3436 | K16: 62 | L16: 64 | M16: 59 | N16: 61 | O16: 57 | P16: 59 | Q16: 56 | R16: 57 | S16: 55 | T16: 57 | U16: 269 | V16: 275 | W16: 276 | X16: 281 | Y16: 281 | Z16: 286 | AA16: 326 | AB16: 332 | AC16: 296 | AD16: 302 | AE16: 290 | AF16: 295 | AG16: 248 | AH16: 253 | AI16: 234 | AJ16: 239 | AK16: 180 | AL16: 184 | AM16: 173 | AN16: 177 | AO16: 138 | AP16: 141 | AQ16: 109 | AR16: 111 | AS16: 100 | AT16: 102 | AU16: 69 | AV16: 71 | AW16: 41 | AX16: 42 | AY16: 46 | AZ16: 47 | BA16: 132 | BB16: 10 | BC16: 2928 | BD16: 250 | BE16: 271 | BF16: 1248 | BG16: 163
B17: 02 | C17: 10 | D17: 5664 | E17: C.S. CARQUIN | F17: 6801 | H17: 3365 | I17: 3436 | K17: 62 | L17: 64 | M17: 59 | N17: 61 | O17: 57 | P17: 59 | Q17: 56 | R17: 57 | S17: 55 | T17: 57 | U17: 269 | V17: 275 | W17: 276 | X17: 281 | Y17: 281 | Z17: 286 | AA17: 326 | AB17: 332 | AC17: 296 | AD17: 302 | AE17: 290 | AF17: 295 | AG17: 248 | AH17: 253 | AI17: 234 | AJ17: 239 | AK17: 180 | AL17: 184 | AM17: 173 | AN17: 177 | AO17: 138 | AP17: 141 | AQ17: 109 | AR17: 111 | AS17: 100 | AT17: 102 | AU17: 69 | AV17: 71 | AW17: 41 | AX17: 42 | AY17: 46 | AZ17: 47 | BA17: 132 | BB17: 10 | BC17: 2928 | BD17: 250 | BE17: 271 | BF17: 1248 | BG17: 163
A18: 150804 | C18: 11 | D18: 150804 | E18: DISTRITO CHECRAS | F18: 1781 | H18: 880 | I18: 901 | K18: 15 | L18: 15 | M18: 13 | N18: 14 | O18: 12 | P18: 13 | Q18: 12 | R18: 12 | S18: 12 | T18: 12 | U18: 67 | V18: 69 | W18: 81 | X18: 83 | Y18: 52 | Z18: 53 | AA18: 35 | AB18: 36 | AC18: 44 | AD18: 44 | AE18: 40 | AF18: 41 | AG18: 61 | AH18: 62 | AI18: 54 | AJ18: 56 | AK18: 52 | AL18: 53 | AM18: 68 | AN18: 70 | AO18: 51 | AP18: 51 | AQ18: 52 | AR18: 54 | AS18: 43 | AT18: 44 | AU18: 57 | AV18: 59 | AW18: 31 | AX18: 31 | AY18: 28 | AZ18: 29 | BA18: 34 | BB18: 2 | BC18: 880 | BD18: 74 | BE18: 40 | BF18: 288 | BG18: 42
B19: 05 | C19: 12 | D19: 5663 | E19: P.S. PUÑUN | F19: 1781 | H19: 880 | I19: 901 | K19: 15 | L19: 15 | M19: 13 | N19: 14 | O19: 12 | P19: 13 | Q19: 12 | R19: 12 | S19: 12 | T19: 12 | U19: 67 | V19: 69 | W19: 81 | X19: 83 | Y19: 52 | Z19: 53 | AA19: 35 | AB19: 36 | AC19: 44 | AD19: 44 | AE19: 40 | AF19: 41 | AG19: 61 | AH19: 62 | AI19: 54 | AJ19: 56 | AK19: 52 | AL19: 53 | AM19: 68 | AN19: 70 | AO19: 51 | AP19: 51 | AQ19: 52 | AR19: 54 | AS19: 43 | AT19: 44 | AU19: 57 | AV19: 59 | AW19: 31 | AX19: 31 | AY19: 28 | AZ19: 29 | BA19: 34 | BB19: 2 | BC19: 880 | BD19: 74 | BE19: 40 | BF19: 288 | BG19: 42
A20: 150805 | C20: 13 | D20: 150805 | E20: DISTRITO HUALMAY | F20: 28589 | H20: 14158 | I20: 14431 | K20: 248 | L20: 252 | M20: 233 | N20: 237 | O20: 223 | P20: 227 | Q20: 218 | R20: 222 | S20: 217 | T20: 222 | U20: 1161 | V20: 1183 | W20: 1345 | X20: 1372 | Y20: 1273 | Z20: 1297 | AA20: 1262 | AB20: 1286 | AC20: 1063 | AD20: 1083 | AE20: 1019 | AF20: 1038 | AG20: 1036 | AH20: 1056 | AI20: 917 | AJ20: 935 | AK20: 769 | AL20: 784 | AM20: 718 | AN20: 733 | AO20: 643 | AP20: 655 | AQ20: 520 | AR20: 530 | AS20: 440 | AT20: 449 | AU20: 327 | AV20: 333 | AW20: 252 | AX20: 257 | AY20: 274 | AZ20: 280 | BA20: 510 | BB20: 38 | BC20: 14710 | BD20: 1345 | BE20: 1303 | BF20: 6318 | BG20: 631
B21: 02 | C21: 14 | D21: 5665 | E21: C.S. HUALMAY | F21: 14295 | H21: 7077 | I21: 7218 | K21: 124 | L21: 126 | M21: 116 | N21: 118 | O21: 111 | P21: 113 | Q21: 109 | R21: 111 | S21: 108 | T21: 111 | U21: 581 | V21: 592 | W21: 672 | X21: 686 | Y21: 637 | Z21: 649 | AA21: 631 | AB21: 644 | AC21: 532 | AD21: 542 | AE21: 510 | AF21: 519 | AG21: 518 | AH21: 528 | AI21: 459 | AJ21: 467 | AK21: 384 | AL21: 392 | AM21: 359 | AN21: 366 | AO21: 321 | AP21: 328 | AQ21: 259 | AR21: 265 | AS21: 220 | AT21: 225 | AU21: 163 | AV21: 167 | AW21: 126 | AX21: 129 | AY21: 137 | AZ21: 140 | BA21: 254 | BB21: 19 | BC21: 7354 | BD21: 672 | BE21: 652 | BF21: 3159 | BG21: 315
B22: 02 | C22: 15 | D22: 5666 | E22: P.S.DGO. MANDAMIENTO | F22: 10006 | H22: 4954 | I22: 5052 | K22: 87 | L22: 88 | M22: 82 | N22: 83 | O22: 78 | P22: 80 | Q22: 76 | R22: 78 | S22: 76 | T22: 78 | U22: 406 | V22: 414 | W22: 471 | X22: 480 | Y22: 445 | Z22: 454 | AA22: 441 | AB22: 450 | AC22: 372 | AD22: 379 | AE22: 357 | AF22: 363 | AG22: 362 | AH22: 370 | AI22: 321 | AJ22: 327 | AK22: 269 | AL22: 275 | AM22: 252 | AN22: 256 | AO22: 225 | AP22: 229 | AQ22: 182 | AR22: 186 | AS22: 154 | AT22: 157 | AU22: 114 | AV22: 117 | AW22: 88 | AX22: 90 | AY22: 96 | AZ22: 98 | BA22: 179 | BB22: 13 | BC22: 5149 | BD22: 471 | BE22: 456 | BF22: 2211 | BG22: 221
B23: 02 | C23: 16 | D23: 5667 | E23: P.S. CAMPO ALEGRE | F23: 4288 | H23: 2125 | I23: 2163 | K23: 37 | L23: 38 | M23: 35 | N23: 36 | O23: 34 | P23: 34 | Q23: 33 | R23: 33 | S23: 33 | T23: 33 | U23: 174 | V23: 177 | W23: 202 | X23: 206 | Y23: 191 | Z23: 194 | AA23: 189 | AB23: 193 | AC23: 159 | AD23: 162 | AE23: 153 | AF23: 155 | AG23: 155 | AH23: 159 | AI23: 138 | AJ23: 140 | AK23: 115 | AL23: 118 | AM23: 108 | AN23: 110 | AO23: 97 | AP23: 98 | AQ23: 78 | AR23: 80 | AS23: 66 | AT23: 67 | AU23: 49 | AV23: 50 | AW23: 38 | AX23: 38 | AY23: 41 | AZ23: 42 | BA23: 77 | BB23: 6 | BC23: 2207 | BD23: 202 | BE23: 195 | BF23: 948 | BG23: 95
A24: 150806 | C24: 17 | D24: 150806 | E24: DISTRITO HUAURA | F24: 35373 | H24: 17516 | I24: 17857 | K24: 315 | L24: 321 | M24: 299 | N24: 304 | O24: 288 | P24: 294 | Q24: 283 | R24: 289 | S24: 284 | T24: 289 | U24: 1526 | V24: 1556 | W24: 1809 | X24: 1845 | Y24: 1872 | Z24: 1908 | AA24: 1655 | AB24: 1687 | AC24: 1363 | AD24: 1390 | AE24: 1280 | AF24: 1306 | AG24: 1225 | AH24: 1248 | AI24: 1061 | AJ24: 1081 | AK24: 962 | AL24: 980 | AM24: 814 | AN24: 829 | AO24: 651 | AP24: 664 | AQ24: 528 | AR24: 539 | AS24: 436 | AT24: 444 | AU24: 389 | AV24: 397 | AW24: 240 | AX24: 245 | AY24: 236 | AZ24: 241 | BA24: 647 | BB24: 49 | BC24: 17576 | BD24: 1742 | BE24: 1816 | BF24: 7761 | BG24: 802
B25: 01 | C25: 18 | D25: 5682 | E25: C.S HUAURA | F25: 15918 | H25: 7883 | I25: 8035 | K25: 142 | L25: 144 | M25: 135 | N25: 137 | O25: 130 | P25: 132 | Q25: 128 | R25: 130 | S25: 128 | T25: 130 | U25: 686 | V25: 700 | W25: 815 | X25: 830 | Y25: 842 | Z25: 859 | AA25: 745 | AB25: 760 | AC25: 613 | AD25: 626 | AE25: 576 | AF25: 587 | AG25: 551 | AH25: 562 | AI25: 477 | AJ25: 487 | AK25: 433 | AL25: 441 | AM25: 366 | AN25: 374 | AO25: 293 | AP25: 298 | AQ25: 238 | AR25: 242 | AS25: 196 | AT25: 200 | AU25: 175 | AV25: 178 | AW25: 108 | AX25: 110 | AY25: 106 | AZ25: 108 | BA25: 291 | BB25: 22 | BC25: 7908 | BD25: 784 | BE25: 817 | BF25: 3492 | BG25: 361
B26: 01 | C26: 19 | D26: 5686 | E26: P.S. MAT. EL SOCORRO | F26: 13442 | H26: 6654 | I26: 6788 | K26: 120 | L26: 122 | M26: 113 | N26: 116 | O26: 109 | P26: 112 | Q26: 107 | R26: 110 | S26: 108 | T26: 110 | U26: 580 | V26: 591 | W26: 687 | X26: 701 | Y26: 711 | Z26: 725 | AA26: 629 | AB26: 641 | AC26: 518 | AD26: 529 | AE26: 487 | AF26: 497 | AG26: 465 | AH26: 475 | AI26: 403 | AJ26: 411 | AK26: 365 | AL26: 373 | AM26: 309 | AN26: 315 | AO26: 248 | AP26: 252 | AQ26: 201 | AR26: 204 | AS26: 165 | AT26: 169 | AU26: 148 | AV26: 151 | AW26: 91 | AX26: 93 | AY26: 90 | AZ26: 91 | BA26: 246 | BB26: 19 | BC26: 6679 | BD26: 662 | BE26: 690 | BF26: 2949 | BG26: 305
B27: 01 | C27: 20 | D27: 5683 | E27: P.S. HUMAYA | F27: 3537 | H27: 1751 | I27: 1786 | K27: 32 | L27: 32 | M27: 30 | N27: 30 | O27: 29 | P27: 29 | Q27: 28 | R27: 29 | S27: 28 | T27: 29 | U27: 153 | V27: 155 | W27: 181 | X27: 185 | Y27: 187 | Z27: 190 | AA27: 165 | AB27: 169 | AC27: 136 | AD27: 139 | AE27: 128 | AF27: 131 | AG27: 122 | AH27: 125 | AI27: 106 | AJ27: 108 | AK27: 96 | AL27: 98 | AM27: 81 | AN27: 83 | AO27: 65 | AP27: 67 | AQ27: 53 | AR27: 54 | AS27: 44 | AT27: 44 | AU27: 39 | AV27: 40 | AW27: 24 | AX27: 25 | AY27: 24 | AZ27: 24 | BA27: 65 | BB27: 5 | BC27: 1758 | BD27: 174 | BE27: 182 | BF27: 776 | BG27: 80
B28: 01 | C28: 21 | D28: 5684 | E28: P.S. VILCAHUAURA | F28: 2122 | H28: 1050 | I28: 1072 | K28: 19 | L28: 19 | M28: 18 | N28: 18 | O28: 17 | P28: 18 | Q28: 17 | R28: 17 | S28: 17 | T28: 17 | U28: 92 | V28: 94 | W28: 108 | X28: 110 | Y28: 112 | Z28: 115 | AA28: 99 | AB28: 101 | AC28: 82 | AD28: 83 | AE28: 77 | AF28: 78 | AG28: 73 | AH28: 75 | AI28: 64 | AJ28: 65 | AK28: 58 | AL28: 59 | AM28: 49 | AN28: 50 | AO28: 39 | AP28: 40 | AQ28: 32 | AR28: 32 | AS28: 26 | AT28: 27 | AU28: 23 | AV28: 24 | AW28: 14 | AX28: 15 | AY28: 14 | AZ28: 15 | BA28: 39 | BB28: 3 | BC28: 1055 | BD28: 105 | BE28: 109 | BF28: 466 | BG28: 48
B29: 01 | C29: 22 | D29: 5685 | E29: P.S. PEÑICO | F29: 354 | H29: 170 | I29: 184 | K29: 3 | L29: 3 | M29: 3 | N29: 3 | O29: 3 | P29: 3 | Q29: 3 | R29: 3 | S29: 3 | T29: 3 | U29: 15 | V29: 16 | W29: 18 | X29: 19 | Y29: 19 | Z29: 20 | AA29: 16 | AB29: 17 | AC29: 13 | AD29: 14 | AE29: 12 | AF29: 13 | AG29: 12 | AH29: 13 | AI29: 10 | AJ29: 11 | AK29: 9 | AL29: 10 | AM29: 8 | AN29: 8 | AO29: 6 | AP29: 7 | AQ29: 5 | AR29: 6 | AS29: 4 | AT29: 5 | AU29: 4 | AV29: 4 | AW29: 2 | AX29: 3 | AY29: 2 | AZ29: 3 | BA29: 6 | BB29: 0 | BC29: 176 | BD29: 17 | BE29: 18 | BF29: 78 | BG29: 8
A30: 150807 | C30: 23 | D30: 150807 | E30: DISTRITO LEONCIO PRADO | F30: 1980 | H30: 980 | I30: 1000 | K30: 15 | L30: 15 | M30: 18 | N30: 19 | O30: 21 | P30: 21 | Q30: 22 | R30: 23 | S30: 23 | T30: 24 | U30: 109 | V30: 111 | W30: 78 | X30: 80 | Y30: 73 | Z30: 75 | AA30: 84 | AB30: 85 | AC30: 72 | AD30: 73 | AE30: 60 | AF30: 61 | AG30: 62 | AH30: 63 | AI30: 52 | AJ30: 53 | AK30: 58 | AL30: 59 | AM30: 56 | AN30: 57 | AO30: 36 | AP30: 37 | AQ30: 37 | AR30: 37 | AS30: 30 | AT30: 31 | AU30: 29 | AV30: 30 | AW30: 21 | AX30: 21 | AY30: 24 | AZ30: 25 | BA30: 34 | BB30: 2 | BC30: 897 | BD30: 80 | BE30: 62 | BF30: 348 | BG30: 42
B31: 03 | C31: 24 | D31: 5778 | E31: P.S. AUQUIMARCA | F31: 99 | H31: 47 | I31: 52 | K31: 1 | L31: 1 | M31: 1 | N31: 1 | O31: 1 | P31: 1 | Q31: 1 | R31: 1 | S31: 1 | T31: 1 | U31: 5 | V31: 5 | W31: 4 | X31: 4 | Y31: 3 | Z31: 4 | AA31: 4 | AB31: 5 | AC31: 4 | AD31: 4 | AE31: 3 | AF31: 3 | AG31: 3 | AH31: 3 | AI31: 2 | AJ31: 3 | AK31: 3 | AL31: 3 | AM31: 3 | AN31: 3 | AO31: 2 | AP31: 2 | AQ31: 2 | AR31: 2 | AS31: 1 | AT31: 2 | AU31: 1 | AV31: 2 | AW31: 1 | AX31: 1 | AY31: 1 | AZ31: 1 | BA31: 2 | BB31: 0 | BC31: 45 | BD31: 4 | BE31: 3 | BF31: 17 | BG31: 2
B32: 03 | C32: 25 | D32: 5779 | E32: P.S. PARAN | F32: 990 | H32: 489 | I32: 501 | K32: 7 | L32: 7 | M32: 9 | N32: 9 | O32: 10 | P32: 11 | Q32: 11 | R32: 12 | S32: 12 | T32: 12 | U32: 55 | V32: 56 | W32: 39 | X32: 39 | Y32: 37 | Z32: 37 | AA32: 42 | AB32: 43 | AC32: 36 | AD32: 37 | AE32: 30 | AF32: 31 | AG32: 31 | AH32: 31 | AI32: 26 | AJ32: 27 | AK32: 29 | AL32: 29 | AM32: 28 | AN32: 28 | AO32: 18 | AP32: 18 | AQ32: 18 | AR32: 19 | AS32: 15 | AT32: 16 | AU32: 14 | AV32: 15 | AW32: 10 | AX32: 11 | AY32: 12 | AZ32: 13 | BA32: 17 | BB32: 2 | BC32: 449 | BD32: 40 | BE32: 31 | BF32: 174 | BG32: 21
B33: 03 | C33: 26 | D33: 6725 | E33: P.S. SANTA CRUZ | F33: 436 | H33: 213 | I33: 223 | K33: 3 | L33: 4 | M33: 4 | N33: 4 | O33: 4 | P33: 5 | Q33: 5 | R33: 5 | S33: 5 | T33: 5 | U33: 24 | V33: 24 | W33: 17 | X33: 17 | Y33: 16 | Z33: 16 | AA33: 18 | AB33: 19 | AC33: 16 | AD33: 16 | AE33: 13 | AF33: 14 | AG33: 14 | AH33: 15 | AI33: 12 | AJ33: 12 | AK33: 13 | AL33: 13 | AM33: 12 | AN33: 13 | AO33: 8 | AP33: 8 | AQ33: 8 | AR33: 8 | AS33: 6 | AT33: 7 | AU33: 6 | AV33: 7 | AW33: 4 | AX33: 5 | AY33: 5 | AZ33: 6 | BA33: 7 | BB33: 0 | BC33: 197 | BD33: 18 | BE33: 14 | BF33: 77 | BG33: 9
B34: 03 | C34: 27 | D34: 7757 | E34: P.S. HUANANGUI | F34: 455 | H34: 222 | I34: 233 | K34: 3 | L34: 4 | M34: 4 | N34: 5 | O34: 5 | P34: 5 | Q34: 5 | R34: 5 | S34: 5 | T34: 6 | U34: 25 | V34: 26 | W34: 19 | X34: 19 | Y34: 17 | Z34: 18 | AA34: 19 | AB34: 19 | AC34: 16 | AD34: 16 | AE34: 13 | AF34: 14 | AG34: 14 | AH34: 14 | AI34: 11 | AJ34: 12 | AK34: 13 | AL34: 14 | AM34: 13 | AN34: 13 | AO34: 8 | AP34: 9 | AQ34: 8 | AR34: 9 | AS34: 7 | AT34: 7 | AU34: 7 | AV34: 7 | AW34: 5 | AX34: 5 | AY34: 5 | AZ34: 6 | BA34: 8 | BB34: 0 | BC34: 206 | BD34: 18 | BE34: 14 | BF34: 80 | BG34: 10
A35: 150808 | C35: 28 | D35: 150808 | E35: DISTRITO PACCHO | F35: 2189 | H35: 1084 | I35: 1105 | K35: 15 | L35: 16 | M35: 15 | N35: 16 | O35: 15 | P35: 16 | Q35: 16 | R35: 16 | S35: 16 | T35: 16 | U35: 89 | V35: 90 | W35: 92 | X35: 93 | Y35: 59 | Z35: 61 | AA35: 64 | AB35: 65 | AC35: 57 | AD35: 59 | AE35: 65 | AF35: 66 | AG35: 70 | AH35: 71 | AI35: 69 | AJ35: 71 | AK35: 61 | AL35: 62 | AM35: 59 | AN35: 61 | AO35: 58 | AP35: 59 | AQ35: 71 | AR35: 72 | AS35: 65 | AT35: 66 | AU35: 55 | AV35: 56 | AW35: 38 | AX35: 38 | AY35: 35 | AZ35: 35 | BA35: 35 | BB35: 2 | BC35: 1049 | BD35: 95 | BE35: 44 | BF35: 359 | BG35: 43
B36: 05 | C36: 29 | D36: 5650 | E36: P.S. PACCHO | F36: 811 | H36: 399 | I36: 412 | K36: 5 | L36: 6 | M36: 5 | N36: 6 | O36: 5 | P36: 6 | Q36: 6 | R36: 6 | S36: 6 | T36: 6 | U36: 33 | V36: 34 | W36: 33 | X36: 34 | Y36: 22 | Z36: 23 | AA36: 24 | AB36: 25 | AC36: 21 | AD36: 22 | AE36: 24 | AF36: 25 | AG36: 26 | AH36: 27 | AI36: 26 | AJ36: 26 | AK36: 23 | AL36: 23 | AM36: 22 | AN36: 22 | AO36: 21 | AP36: 22 | AQ36: 26 | AR36: 27 | AS36: 24 | AT36: 24 | AU36: 20 | AV36: 21 | AW36: 14 | AX36: 14 | AY36: 13 | AZ36: 13 | BA36: 13 | BB36: 1 | BC36: 388 | BD36: 35 | BE36: 16 | BF36: 133 | BG36: 16
B37: 05 | C37: 30 | D37: 5651 | E37: P.S. LACSANGA | F37: 722 | H37: 359 | I37: 363 | K37: 5 | L37: 5 | M37: 5 | N37: 5 | O37: 5 | P37: 5 | Q37: 5 | R37: 5 | S37: 5 | T37: 5 | U37: 29 | V37: 29 | W37: 31 | X37: 31 | Y37: 20 | Z37: 21 | AA37: 21 | AB37: 21 | AC37: 19 | AD37: 20 | AE37: 21 | AF37: 21 | AG37: 24 | AH37: 24 | AI37: 23 | AJ37: 23 | AK37: 20 | AL37: 21 | AM37: 20 | AN37: 20 | AO37: 19 | AP37: 19 | AQ37: 24 | AR37: 24 | AS37: 21 | AT37: 22 | AU37: 18 | AV37: 18 | AW37: 13 | AX37: 13 | AY37: 11 | AZ37: 11 | BA37: 12 | BB37: 1 | BC37: 347 | BD37: 32 | BE37: 14 | BF37: 118 | BG37: 15
B38: 05 | C38: 31 | D38: 5653 | E38: P.S. AYARANGA | F38: 328 | H38: 157 | I38: 171 | K38: 2 | L38: 3 | M38: 2 | N38: 3 | O38: 2 | P38: 3 | Q38: 2 | R38: 3 | S38: 2 | T38: 3 | U38: 13 | V38: 14 | W38: 14 | X38: 14 | Y38: 8 | Z38: 9 | AA38: 9 | AB38: 10 | AC38: 8 | AD38: 9 | AE38: 10 | AF38: 10 | AG38: 10 | AH38: 10 | AI38: 10 | AJ38: 11 | AK38: 9 | AL38: 9 | AM38: 9 | AN38: 9 | AO38: 9 | AP38: 9 | AQ38: 10 | AR38: 11 | AS38: 10 | AT38: 10 | AU38: 8 | AV38: 9 | AW38: 5 | AX38: 6 | AY38: 5 | AZ38: 6 | BA38: 5 | BB38: 0 | BC38: 157 | BD38: 14 | BE38: 7 | BF38: 54 | BG38: 6
B39: 05 | C39: 32 | D39: 5652 | E39: P.S. MUZGA | F39: 328 | H39: 157 | I39: 171 | K39: 2 | L39: 3 | M39: 2 | N39: 3 | O39: 2 | P39: 3 | Q39: 2 | R39: 3 | S39: 2 | T39: 3 | U39: 13 | V39: 14 | W39: 14 | X39: 14 | Y39: 8 | Z39: 9 | AA39: 9 | AB39: 10 | AC39: 8 | AD39: 9 | AE39: 10 | AF39: 10 | AG39: 10 | AH39: 10 | AI39: 10 | AJ39: 11 | AK39: 9 | AL39: 9 | AM39: 9 | AN39: 9 | AO39: 9 | AP39: 9 | AQ39: 10 | AR39: 11 | AS39: 10 | AT39: 10 | AU39: 8 | AV39: 9 | AW39: 5 | AX39: 6 | AY39: 5 | AZ39: 6 | BA39: 5 | BB39: 0 | BC39: 157 | BD39: 14 | BE39: 7 | BF39: 54 | BG39: 6
A40: 150809 | C40: 33 | D40: 150809 | E40: DISTRITO SANTA LEONOR | F40: 1455 | H40: 721 | I40: 734 | K40: 11 | L40: 11 | M40: 10 | N40: 10 | O40: 10 | P40: 10 | Q40: 10 | R40: 11 | S40: 10 | T40: 11 | U40: 67 | V40: 69 | W40: 84 | X40: 85 | Y40: 52 | Z40: 54 | AA40: 45 | AB40: 45 | AC40: 33 | AD40: 34 | AE40: 35 | AF40: 36 | AG40: 45 | AH40: 46 | AI40: 43 | AJ40: 43 | AK40: 45 | AL40: 45 | AM40: 50 | AN40: 51 | AO40: 35 | AP40: 35 | AQ40: 39 | AR40: 39 | AS40: 29 | AT40: 29 | AU40: 28 | AV40: 28 | AW40: 23 | AX40: 24 | AY40: 17 | AZ40: 18 | BA40: 26 | BB40: 2 | BC40: 682 | BD40: 72 | BE40: 54 | BF40: 239 | BG40: 32
B41: 05 | C41: 34 | D41: 5645 | E41: P.S. CHIUCHIN | F41: 917 | H41: 453 | I41: 464 | K41: 7 | L41: 7 | M41: 6 | N41: 7 | O41: 6 | P41: 7 | Q41: 7 | R41: 7 | S41: 7 | T41: 7 | U41: 42 | V41: 42 | W41: 52 | X41: 54 | Y41: 33 | Z41: 34 | AA41: 28 | AB41: 28 | AC41: 21 | AD41: 21 | AE41: 22 | AF41: 22 | AG41: 28 | AH41: 29 | AI41: 27 | AJ41: 28 | AK41: 28 | AL41: 29 | AM41: 32 | AN41: 32 | AO41: 22 | AP41: 22 | AQ41: 24 | AR41: 25 | AS41: 18 | AT41: 19 | AU41: 17 | AV41: 18 | AW41: 15 | AX41: 15 | AY41: 11 | AZ41: 11 | BA41: 16 | BB41: 1 | BC41: 430 | BD41: 45 | BE41: 34 | BF41: 151 | BG41: 20
B42: 05 | C42: 35 | D42: 5646 | E42: P.S. PARQUIN | F42: 378 | H42: 184 | I42: 194 | K42: 3 | L42: 3 | M42: 2 | N42: 3 | O42: 2 | P42: 3 | Q42: 2 | R42: 3 | S42: 2 | T42: 3 | U42: 18 | V42: 18 | W42: 22 | X42: 22 | Y42: 14 | Z42: 14 | AA42: 11 | AB42: 12 | AC42: 9 | AD42: 9 | AE42: 9 | AF42: 10 | AG42: 12 | AH42: 12 | AI42: 11 | AJ42: 11 | AK42: 11 | AL42: 12 | AM42: 13 | AN42: 13 | AO42: 9 | AP42: 9 | AQ42: 10 | AR42: 10 | AS42: 7 | AT42: 8 | AU42: 7 | AV42: 8 | AW42: 6 | AX42: 6 | AY42: 4 | AZ42: 5 | BA42: 7 | BB42: 1 | BC42: 177 | BD42: 19 | BE42: 14 | BF42: 62 | BG42: 8
B43: 05 | C43: 36 | D43: 5647 | E43: P.S. JUCUL | F43: 160 | H43: 76 | I43: 84 | K43: 1 | L43: 1 | M43: 1 | N43: 1 | O43: 1 | P43: 1 | Q43: 1 | R43: 1 | S43: 1 | T43: 1 | U43: 8 | V43: 8 | W43: 9 | X43: 10 | Y43: 5 | Z43: 6 | AA43: 5 | AB43: 6 | AC43: 3 | AD43: 4 | AE43: 4 | AF43: 4 | AG43: 5 | AH43: 5 | AI43: 4 | AJ43: 5 | AK43: 5 | AL43: 5 | AM43: 5 | AN43: 6 | AO43: 4 | AP43: 4 | AQ43: 4 | AR43: 5 | AS43: 3 | AT43: 3 | AU43: 3 | AV43: 3 | AW43: 2 | AX43: 3 | AY43: 2 | AZ43: 2 | BA43: 3 | BB43: 0 | BC43: 75 | BD43: 8 | BE43: 6 | BF43: 26 | BG43: 4
A44: 150810 | C44: 37 | D44: 150810 | E44: DISTRITO SANTA MARIA | F44: 33496 | H44: 16586 | I44: 16910 | K44: 287 | L44: 293 | M44: 276 | N44: 281 | O44: 269 | P44: 274 | Q44: 266 | R44: 272 | S44: 267 | T44: 273 | U44: 1424 | V44: 1451 | W44: 1603 | X44: 1634 | Y44: 1515 | Z44: 1545 | AA44: 1429 | AB44: 1456 | AC44: 1215 | AD44: 1238 | AE44: 1202 | AF44: 1226 | AG44: 1231 | AH44: 1255 | AI44: 995 | AJ44: 1015 | AK44: 890 | AL44: 907 | AM44: 776 | AN44: 792 | AO44: 736 | AP44: 750 | AQ44: 637 | AR44: 649 | AS44: 478 | AT44: 487 | AU44: 421 | AV44: 430 | AW44: 302 | AX44: 307 | AY44: 367 | AZ44: 375 | BA44: 590 | BB44: 44 | BC44: 16667 | BD44: 1565 | BE44: 1457 | BF44: 7134 | BG44: 731
B45: 02 | C45: 38 | D45: 5668 | E45: C.S. SANTA MARIA | F45: 9379 | H45: 4644 | I45: 4735 | K45: 80 | L45: 82 | M45: 77 | N45: 79 | O45: 75 | P45: 77 | Q45: 75 | R45: 76 | S45: 75 | T45: 76 | U45: 398 | V45: 406 | W45: 449 | X45: 458 | Y45: 424 | Z45: 433 | AA45: 400 | AB45: 408 | AC45: 340 | AD45: 347 | AE45: 337 | AF45: 343 | AG45: 345 | AH45: 351 | AI45: 279 | AJ45: 284 | AK45: 249 | AL45: 254 | AM45: 217 | AN45: 222 | AO45: 206 | AP45: 210 | AQ45: 178 | AR45: 182 | AS45: 134 | AT45: 136 | AU45: 118 | AV45: 120 | AW45: 85 | AX45: 86 | AY45: 103 | AZ45: 105 | BA45: 165 | BB45: 12 | BC45: 4667 | BD45: 438 | BE45: 408 | BF45: 1998 | BG45: 205
B46: 02 | C46: 39 | D46: 5669 | E46: P.S. CHONTA | F46: 5024 | H46: 2488 | I46: 2536 | K46: 43 | L46: 44 | M46: 42 | N46: 42 | O46: 40 | P46: 41 | Q46: 40 | R46: 41 | S46: 40 | T46: 41 | U46: 214 | V46: 218 | W46: 241 | X46: 245 | Y46: 227 | Z46: 232 | AA46: 214 | AB46: 219 | AC46: 182 | AD46: 185 | AE46: 180 | AF46: 183 | AG46: 184 | AH46: 188 | AI46: 150 | AJ46: 152 | AK46: 134 | AL46: 136 | AM46: 116 | AN46: 119 | AO46: 110 | AP46: 113 | AQ46: 96 | AR46: 97 | AS46: 72 | AT46: 73 | AU46: 63 | AV46: 65 | AW46: 45 | AX46: 46 | AY46: 55 | AZ46: 56 | BA46: 89 | BB46: 7 | BC46: 2500 | BD46: 235 | BE46: 219 | BF46: 1070 | BG46: 110
B47: 02 | C47: 40 | D47: 5671 | E47: P.S. ZAPATA | F47: 2680 | H47: 1327 | I47: 1353 | K47: 23 | L47: 23 | M47: 22 | N47: 22 | O47: 22 | P47: 22 | Q47: 21 | R47: 22 | S47: 21 | T47: 22 | U47: 113 | V47: 116 | W47: 128 | X47: 130 | Y47: 121 | Z47: 123 | AA47: 114 | AB47: 117 | AC47: 98 | AD47: 99 | AE47: 97 | AF47: 98 | AG47: 99 | AH47: 101 | AI47: 79 | AJ47: 81 | AK47: 71 | AL47: 73 | AM47: 62 | AN47: 64 | AO47: 59 | AP47: 60 | AQ47: 51 | AR47: 52 | AS47: 38 | AT47: 39 | AU47: 34 | AV47: 34 | AW47: 24 | AX47: 25 | AY47: 30 | AZ47: 30 | BA47: 47 | BB47: 3 | BC47: 1333 | BD47: 125 | BE47: 116 | BF47: 571 | BG47: 58
B48: 02 | C48: 41 | D48: 5670 | E48: P.S. AMADO VELASQUEZ | F48: 9044 | H48: 4478 | I48: 4566 | K48: 78 | L48: 79 | M48: 74 | N48: 76 | O48: 73 | P48: 74 | Q48: 72 | R48: 73 | S48: 72 | T48: 74 | U48: 385 | V48: 392 | W48: 432 | X48: 441 | Y48: 409 | Z48: 418 | AA48: 386 | AB48: 393 | AC48: 328 | AD48: 334 | AE48: 325 | AF48: 331 | AG48: 332 | AH48: 339 | AI48: 269 | AJ48: 274 | AK48: 240 | AL48: 245 | AM48: 209 | AN48: 214 | AO48: 199 | AP48: 202 | AQ48: 172 | AR48: 175 | AS48: 129 | AT48: 132 | AU48: 114 | AV48: 116 | AW48: 81 | AX48: 83 | AY48: 99 | AZ48: 101 | BA48: 159 | BB48: 12 | BC48: 4500 | BD48: 423 | BE48: 393 | BF48: 1926 | BG48: 197
B49: 02 | C49: 42 | D49: 5672 | E49: P.S. SAN BARTOLOME | F49: 7369 | H49: 3648 | I49: 3721 | K49: 63 | L49: 65 | M49: 61 | N49: 62 | O49: 59 | P49: 60 | Q49: 58 | R49: 60 | S49: 59 | T49: 60 | U49: 313 | V49: 320 | W49: 353 | X49: 360 | Y49: 333 | Z49: 340 | AA49: 314 | AB49: 320 | AC49: 267 | AD49: 273 | AE49: 264 | AF49: 270 | AG49: 271 | AH49: 276 | AI49: 219 | AJ49: 223 | AK49: 196 | AL49: 199 | AM49: 171 | AN49: 174 | AO49: 162 | AP49: 165 | AQ49: 140 | AR49: 143 | AS49: 105 | AT49: 107 | AU49: 93 | AV49: 94 | AW49: 66 | AX49: 68 | AY49: 81 | AZ49: 82 | BA49: 130 | BB49: 10 | BC49: 3667 | BD49: 344 | BE49: 321 | BF49: 1569 | BG49: 161
A50: 150811 | C50: 43 | D50: 150811 | E50: DISTRITO SAYAN | F50: 24095 | H50: 11929 | I50: 12166 | K50: 220 | L50: 225 | M50: 217 | N50: 221 | O50: 215 | P50: 220 | Q50: 215 | R50: 220 | S50: 216 | T50: 220 | U50: 1115 | V50: 1136 | W50: 1178 | X50: 1202 | Y50: 1147 | Z50: 1170 | AA50: 1142 | AB50: 1165 | AC50: 981 | AD50: 1000 | AE50: 910 | AF50: 927 | AG50: 861 | AH50: 878 | AI50: 684 | AJ50: 697 | AK50: 664 | AL50: 677 | AM50: 521 | AN50: 531 | AO50: 444 | AP50: 453 | AQ50: 375 | AR50: 383 | AS50: 286 | AT50: 292 | AU50: 241 | AV50: 246 | AW50: 158 | AX50: 161 | AY50: 139 | AZ50: 142 | BA50: 454 | BB50: 34 | BC50: 11576 | BD50: 1160 | BE50: 1163 | BF50: 4979 | BG50: 562
B51: 03 | C51: 44 | D51: 5780 | E51: C.S. SAYAN | F51: 9637 | H51: 4770 | I51: 4867 | K51: 88 | L51: 90 | M51: 86 | N51: 88 | O51: 86 | P51: 88 | Q51: 86 | R51: 88 | S51: 86 | T51: 88 | U51: 446 | V51: 454 | W51: 471 | X51: 480 | Y51: 461 | Z51: 470 | AA51: 458 | AB51: 467 | AC51: 392 | AD51: 400 | AE51: 363 | AF51: 371 | AG51: 344 | AH51: 351 | AI51: 273 | AJ51: 279 | AK51: 264 | AL51: 270 | AM51: 208 | AN51: 212 | AO51: 178 | AP51: 181 | AQ51: 151 | AR51: 153 | AS51: 114 | AT51: 117 | AU51: 97 | AV51: 98 | AW51: 63 | AX51: 65 | AY51: 55 | AZ51: 57 | BA51: 182 | BB51: 13 | BC51: 4629 | BD51: 464 | BE51: 466 | BF51: 1990 | BG51: 226
B52: 03 | C52: 45 | D52: 5774 | E52: P.S. 9 DE OCTUBRE | F52: 5060 | H52: 2507 | I52: 2553 | K52: 46 | L52: 47 | M52: 46 | N52: 46 | O52: 45 | P52: 46 | Q52: 45 | R52: 46 | S52: 46 | T52: 46 | U52: 234 | V52: 239 | W52: 248 | X52: 252 | Y52: 241 | Z52: 245 | AA52: 240 | AB52: 245 | AC52: 206 | AD52: 211 | AE52: 191 | AF52: 195 | AG52: 181 | AH52: 184 | AI52: 144 | AJ52: 146 | AK52: 140 | AL52: 142 | AM52: 109 | AN52: 112 | AO52: 93 | AP52: 95 | AQ52: 79 | AR52: 80 | AS52: 60 | AT52: 61 | AU52: 51 | AV52: 51 | AW52: 33 | AX52: 34 | AY52: 29 | AZ52: 30 | BA52: 95 | BB52: 7 | BC52: 2431 | BD52: 244 | BE52: 244 | BF52: 1046 | BG52: 118
B53: 03 | C53: 46 | D53: 5781 | E53: P.S. CHAMBARA | F53: 964 | H53: 476 | I53: 488 | K53: 9 | L53: 9 | M53: 9 | N53: 9 | O53: 8 | P53: 9 | Q53: 8 | R53: 9 | S53: 8 | T53: 9 | U53: 45 | V53: 45 | W53: 47 | X53: 48 | Y53: 46 | Z53: 47 | AA53: 46 | AB53: 46 | AC53: 40 | AD53: 40 | AE53: 36 | AF53: 37 | AG53: 35 | AH53: 35 | AI53: 27 | AJ53: 28 | AK53: 27 | AL53: 28 | AM53: 21 | AN53: 21 | AO53: 18 | AP53: 18 | AQ53: 15 | AR53: 15 | AS53: 11 | AT53: 12 | AU53: 9 | AV53: 10 | AW53: 6 | AX53: 7 | AY53: 5 | AZ53: 6 | BA53: 18 | BB53: 1 | BC53: 463 | BD53: 46 | BE53: 47 | BF53: 199 | BG53: 22
B54: 03 | C54: 47 | D54: 5775 | E54: P.S. LA MERCED | F54: 1205 | H54: 597 | I54: 608 | K54: 11 | L54: 11 | M54: 11 | N54: 11 | O54: 11 | P54: 11 | Q54: 11 | R54: 11 | S54: 11 | T54: 11 | U54: 56 | V54: 57 | W54: 59 | X54: 60 | Y54: 57 | Z54: 58 | AA54: 57 | AB54: 58 | AC54: 49 | AD54: 50 | AE54: 46 | AF54: 46 | AG54: 43 | AH54: 44 | AI54: 34 | AJ54: 35 | AK54: 33 | AL54: 34 | AM54: 26 | AN54: 27 | AO54: 22 | AP54: 23 | AQ54: 19 | AR54: 19 | AS54: 14 | AT54: 15 | AU54: 12 | AV54: 12 | AW54: 8 | AX54: 8 | AY54: 7 | AZ54: 7 | BA54: 23 | BB54: 2 | BC54: 579 | BD54: 58 | BE54: 58 | BF54: 249 | BG54: 28
B55: 03 | C55: 48 | D55: 5776 | E55: P.S. LA VILLA | F55: 6265 | H55: 3102 | I55: 3163 | K55: 57 | L55: 59 | M55: 56 | N55: 58 | O55: 56 | P55: 57 | Q55: 56 | R55: 57 | S55: 56 | T55: 57 | U55: 290 | V55: 295 | W55: 306 | X55: 313 | Y55: 298 | Z55: 304 | AA55: 297 | AB55: 303 | AC55: 255 | AD55: 260 | AE55: 237 | AF55: 241 | AG55: 224 | AH55: 228 | AI55: 178 | AJ55: 181 | AK55: 173 | AL55: 176 | AM55: 136 | AN55: 138 | AO55: 115 | AP55: 118 | AQ55: 98 | AR55: 99 | AS55: 74 | AT55: 76 | AU55: 63 | AV55: 64 | AW55: 41 | AX55: 42 | AY55: 36 | AZ55: 37 | BA55: 118 | BB55: 9 | BC55: 3010 | BD55: 302 | BE55: 302 | BF55: 1295 | BG55: 146
B56: 03 | C56: 49 | D56: 5777 | E56: P.S. EL AHORCADO | F56: 482 | H56: 234 | I56: 248 | K56: 4 | L56: 5 | M56: 4 | N56: 5 | O56: 4 | P56: 5 | Q56: 4 | R56: 5 | S56: 4 | T56: 5 | U56: 22 | V56: 23 | W56: 24 | X56: 24 | Y56: 22 | Z56: 23 | AA56: 22 | AB56: 23 | AC56: 19 | AD56: 20 | AE56: 18 | AF56: 19 | AG56: 17 | AH56: 18 | AI56: 14 | AJ56: 14 | AK56: 13 | AL56: 14 | AM56: 10 | AN56: 11 | AO56: 9 | AP56: 9 | AQ56: 7 | AR56: 8 | AS56: 6 | AT56: 6 | AU56: 5 | AV56: 5 | AW56: 3 | AX56: 3 | AY56: 3 | AZ56: 3 | BA56: 9 | BB56: 1 | BC56: 232 | BD56: 23 | BE56: 23 | BF56: 100 | BG56: 11
B57: 03 | C57: 50 | D57: 6726 | E57: P.S. LA UNION | F57: 482 | H57: 234 | I57: 248 | K57: 4 | L57: 5 | M57: 4 | N57: 5 | O57: 4 | P57: 5 | Q57: 4 | R57: 5 | S57: 4 | T57: 5 | U57: 22 | V57: 23 | W57: 24 | X57: 24 | Y57: 22 | Z57: 23 | AA57: 22 | AB57: 23 | AC57: 19 | AD57: 20 | AE57: 18 | AF57: 19 | AG57: 17 | AH57: 18 | AI57: 14 | AJ57: 14 | AK57: 13 | AL57: 14 | AM57: 10 | AN57: 11 | AO57: 9 | AP57: 9 | AQ57: 7 | AR57: 8 | AS57: 6 | AT57: 6 | AU57: 5 | AV57: 5 | AW57: 3 | AX57: 3 | AY57: 3 | AZ57: 3 | BA57: 9 | BB57: 1 | BC57: 232 | BD57: 23 | BE57: 23 | BF57: 100 | BG57: 11
A58: 150812 | C58: 51 | D58: 150812 | E58: DISTRITO VEGUETA | F58: 22031 | H58: 10909 | I58: 11122 | K58: 230 | L58: 235 | M58: 211 | N58: 215 | O58: 197 | P58: 200 | Q58: 187 | R58: 190 | S58: 181 | T58: 185 | U58: 922 | V58: 941 | W58: 1063 | X58: 1083 | Y58: 1073 | Z58: 1095 | AA58: 1036 | AB58: 1057 | AC58: 827 | AD58: 843 | AE58: 750 | AF58: 765 | AG58: 722 | AH58: 736 | AI58: 636 | AJ58: 649 | AK58: 607 | AL58: 619 | AM58: 511 | AN58: 521 | AO58: 441 | AP58: 450 | AQ58: 373 | AR58: 380 | AS58: 298 | AT58: 303 | AU58: 255 | AV58: 260 | AW58: 189 | AX58: 192 | AY58: 200 | AZ58: 203 | BA58: 475 | BB58: 36 | BC58: 10767 | BD58: 1018 | BE58: 1070 | BF58: 4578 | BG58: 588
B59: 04 | C59: 52 | D59: 5673 | E59: C.S. VEGUETA | F59: 6610 | H59: 3272 | I59: 3338 | K59: 69 | L59: 71 | M59: 63 | N59: 65 | O59: 59 | P59: 60 | Q59: 56 | R59: 57 | S59: 54 | T59: 56 | U59: 277 | V59: 282 | W59: 319 | X59: 325 | Y59: 321 | Z59: 327 | AA59: 311 | AB59: 318 | AC59: 248 | AD59: 253 | AE59: 225 | AF59: 230 | AG59: 217 | AH59: 221 | AI59: 191 | AJ59: 195 | AK59: 182 | AL59: 186 | AM59: 153 | AN59: 156 | AO59: 133 | AP59: 135 | AQ59: 112 | AR59: 114 | AS59: 90 | AT59: 91 | AU59: 76 | AV59: 78 | AW59: 56 | AX59: 57 | AY59: 60 | AZ59: 61 | BA59: 142 | BB59: 10 | BC59: 3231 | BD59: 306 | BE59: 321 | BF59: 1373 | BG59: 176
B60: 04 | C60: 53 | D60: 5674 | E60: P.S. MAZO | F60: 2423 | H60: 1200 | I60: 1223 | K60: 25 | L60: 26 | M60: 23 | N60: 24 | O60: 22 | P60: 22 | Q60: 20 | R60: 21 | S60: 20 | T60: 20 | U60: 102 | V60: 104 | W60: 117 | X60: 120 | Y60: 119 | Z60: 121 | AA60: 113 | AB60: 116 | AC60: 91 | AD60: 92 | AE60: 82 | AF60: 84 | AG60: 79 | AH60: 80 | AI60: 70 | AJ60: 71 | AK60: 67 | AL60: 68 | AM60: 56 | AN60: 58 | AO60: 49 | AP60: 49 | AQ60: 41 | AR60: 42 | AS60: 33 | AT60: 33 | AU60: 28 | AV60: 29 | AW60: 21 | AX60: 21 | AY60: 22 | AZ60: 22 | BA60: 52 | BB60: 4 | BC60: 1184 | BD60: 112 | BE60: 118 | BF60: 504 | BG60: 65
B61: 04 | C61: 54 | D61: 5675 | E61: P.S. PRIMAVERA | F61: 2864 | H61: 1420 | I61: 1444 | K61: 30 | L61: 30 | M61: 27 | N61: 28 | O61: 26 | P61: 26 | Q61: 24 | R61: 25 | S61: 24 | T61: 24 | U61: 120 | V61: 122 | W61: 138 | X61: 141 | Y61: 139 | Z61: 142 | AA61: 135 | AB61: 137 | AC61: 108 | AD61: 110 | AE61: 98 | AF61: 99 | AG61: 94 | AH61: 96 | AI61: 83 | AJ61: 84 | AK61: 79 | AL61: 80 | AM61: 66 | AN61: 68 | AO61: 57 | AP61: 59 | AQ61: 49 | AR61: 49 | AS61: 39 | AT61: 39 | AU61: 33 | AV61: 34 | AW61: 25 | AX61: 25 | AY61: 26 | AZ61: 26 | BA61: 62 | BB61: 5 | BC61: 1400 | BD61: 132 | BE61: 139 | BF61: 595 | BG61: 76
B62: 04 | C62: 55 | D62: 5676 | E62: P.S. JOSE C. MARIATEGUI | F62: 5948 | H62: 2945 | I62: 3003 | K62: 62 | L62: 64 | M62: 57 | N62: 58 | O62: 53 | P62: 54 | Q62: 51 | R62: 51 | S62: 49 | T62: 50 | U62: 249 | V62: 254 | W62: 287 | X62: 292 | Y62: 290 | Z62: 296 | AA62: 280 | AB62: 285 | AC62: 223 | AD62: 228 | AE62: 203 | AF62: 206 | AG62: 195 | AH62: 199 | AI62: 171 | AJ62: 175 | AK62: 163 | AL62: 167 | AM62: 138 | AN62: 141 | AO62: 119 | AP62: 122 | AQ62: 101 | AR62: 102 | AS62: 80 | AT62: 82 | AU62: 69 | AV62: 70 | AW62: 51 | AX62: 52 | AY62: 54 | AZ62: 55 | BA62: 128 | BB62: 10 | BC62: 2907 | BD62: 275 | BE62: 289 | BF62: 1236 | BG62: 159
B63: 04 | C63: 56 | D63: 5677 | E63: P.S. MEDIO MUNDO | F63: 3745 | H63: 1854 | I63: 1891 | K63: 39 | L63: 40 | M63: 36 | N63: 36 | O63: 33 | P63: 34 | Q63: 32 | R63: 32 | S63: 31 | T63: 31 | U63: 156 | V63: 160 | W63: 180 | X63: 184 | Y63: 182 | Z63: 186 | AA63: 176 | AB63: 180 | AC63: 141 | AD63: 143 | AE63: 128 | AF63: 130 | AG63: 123 | AH63: 125 | AI63: 108 | AJ63: 111 | AK63: 103 | AL63: 106 | AM63: 87 | AN63: 89 | AO63: 75 | AP63: 76 | AQ63: 63 | AR63: 65 | AS63: 51 | AT63: 51 | AU63: 44 | AV63: 44 | AW63: 32 | AX63: 33 | AY63: 34 | AZ63: 35 | BA63: 81 | BB63: 6 | BC63: 1830 | BD63: 173 | BE63: 182 | BF63: 778 | BG63: 100
B64: 04 | C64: 57 | D64: 5678 | E64: P.S. TIROLER | F64: 441 | H64: 215 | I64: 226 | K64: 4 | L64: 5 | M64: 4 | N64: 5 | O64: 4 | P64: 4 | Q64: 4 | R64: 4 | S64: 3 | T64: 4 | U64: 18 | V64: 19 | W64: 21 | X64: 22 | Y64: 22 | Z64: 23 | AA64: 21 | AB64: 21 | AC64: 16 | AD64: 17 | AE64: 15 | AF64: 15 | AG64: 14 | AH64: 15 | AI64: 13 | AJ64: 13 | AK64: 12 | AL64: 13 | AM64: 10 | AN64: 10 | AO64: 8 | AP64: 9 | AQ64: 7 | AR64: 8 | AS64: 6 | AT64: 6 | AU64: 5 | AV64: 5 | AW64: 4 | AX64: 4 | AY64: 4 | AZ64: 4 | BA64: 10 | BB64: 1 | BC64: 215 | BD64: 20 | BE64: 21 | BF64: 92 | BG64: 12
A65: 150900 | C65: 58 | D65: 150900 | E65: PROVINCIA OYON | F65: 22782 | H65: 11280 | I65: 11502 | K65: 247 | L65: 251 | M65: 236 | N65: 240 | O65: 228 | P65: 233 | Q65: 225 | R65: 229 | S65: 223 | T65: 227 | U65: 1155 | V65: 1177 | W65: 1197 | X65: 1221 | Y65: 913 | Z65: 931 | AA65: 863 | AB65: 880 | AC65: 858 | AD65: 875 | AE65: 829 | AF65: 845 | AG65: 886 | AH65: 904 | AI65: 637 | AJ65: 650 | AK65: 605 | AL65: 616 | AM65: 486 | AN65: 496 | AO65: 407 | AP65: 414 | AQ65: 325 | AR65: 332 | AS65: 320 | AT65: 327 | AU65: 264 | AV65: 270 | AW65: 211 | AX65: 216 | AY65: 165 | AZ65: 168 | BA65: 532 | BB65: 38 | BC65: 10522 | BD65: 1141 | BE65: 882 | BF65: 4056 | BG65: 660
A66: 150901 | C66: 59 | D66: 150901 | E66: DISTRITO OYON | F66: 14479 | H66: 7170 | I66: 7309 | K66: 167 | L66: 171 | M66: 160 | N66: 163 | O66: 155 | P66: 158 | Q66: 153 | R66: 155 | S66: 152 | T66: 155 | U66: 781 | V66: 797 | W66: 803 | X66: 818 | Y66: 603 | Z66: 614 | AA66: 574 | AB66: 585 | AC66: 601 | AD66: 613 | AE66: 575 | AF66: 586 | AG66: 602 | AH66: 613 | AI66: 404 | AJ66: 412 | AK66: 367 | AL66: 375 | AM66: 293 | AN66: 299 | AO66: 214 | AP66: 218 | AQ66: 147 | AR66: 149 | AS66: 148 | AT66: 151 | AU66: 108 | AV66: 111 | AW66: 90 | AX66: 91 | AY66: 73 | AZ66: 75 | BA66: 348 | BB66: 26 | BC66: 6580 | BD66: 773 | BE66: 616 | BF66: 2616 | BG66: 431
B67: 05 | C67: 60 | D67: 5659 | E67: C.S. OYON | F67: 11004 | H67: 5448 | I67: 5556 | K67: 127 | L67: 130 | M67: 122 | N67: 124 | O67: 118 | P67: 121 | Q67: 116 | R67: 118 | S67: 115 | T67: 118 | U67: 594 | V67: 606 | W67: 610 | X67: 621 | Y67: 459 | Z67: 467 | AA67: 435 | AB67: 444 | AC67: 457 | AD67: 466 | AE67: 436 | AF67: 445 | AG67: 457 | AH67: 466 | AI67: 307 | AJ67: 313 | AK67: 280 | AL67: 285 | AM67: 223 | AN67: 227 | AO67: 163 | AP67: 166 | AQ67: 111 | AR67: 113 | AS67: 112 | AT67: 115 | AU67: 82 | AV67: 84 | AW67: 68 | AX67: 70 | AY67: 56 | AZ67: 57 | BA67: 265 | BB67: 19 | BC67: 5001 | BD67: 588 | BE67: 468 | BF67: 1988 | BG67: 328
B68: 05 | C68: 61 | D68: 5660 | E68: P.S. MALLAY | F68: 1448 | H68: 716 | I68: 732 | K68: 17 | L68: 17 | M68: 16 | N68: 16 | O68: 15 | P68: 16 | Q68: 15 | R68: 16 | S68: 15 | T68: 16 | U68: 78 | V68: 80 | W68: 81 | X68: 82 | Y68: 60 | Z68: 61 | AA68: 57 | AB68: 59 | AC68: 60 | AD68: 61 | AE68: 57 | AF68: 59 | AG68: 60 | AH68: 61 | AI68: 41 | AJ68: 41 | AK68: 37 | AL68: 37 | AM68: 29 | AN68: 30 | AO68: 21 | AP68: 22 | AQ68: 15 | AR68: 15 | AS68: 15 | AT68: 15 | AU68: 11 | AV68: 11 | AW68: 9 | AX68: 9 | AY68: 7 | AZ68: 8 | BA68: 35 | BB68: 3 | BC68: 658 | BD68: 77 | BE68: 62 | BF68: 262 | BG68: 43
B69: 05 | C69: 62 | D69: 5661 | E69: P.S. NAVA | F69: 145 | H69: 65 | I69: 80 | K69: 1 | L69: 2 | M69: 1 | N69: 2 | O69: 1 | P69: 2 | Q69: 1 | R69: 2 | S69: 1 | T69: 2 | U69: 7 | V69: 8 | W69: 7 | X69: 8 | Y69: 6 | Z69: 6 | AA69: 6 | AB69: 7 | AC69: 6 | AD69: 7 | AE69: 6 | AF69: 7 | AG69: 6 | AH69: 7 | AI69: 4 | AJ69: 4 | AK69: 3 | AL69: 4 | AM69: 3 | AN69: 3 | AO69: 2 | AP69: 2 | AQ69: 1 | AR69: 2 | AS69: 1 | AT69: 2 | AU69: 1 | AV69: 1 | AW69: 1 | AX69: 1 | AY69: 0 | AZ69: 1 | BA69: 3 | BB69: 0 | BC69: 66 | BD69: 8 | BE69: 6 | BF69: 26 | BG69: 4
B70: 05 | C70: 63 | D70: 5662 | E70: P.S. TINTA | F70: 434 | H70: 210 | I70: 224 | K70: 5 | L70: 5 | M70: 5 | N70: 5 | O70: 4 | P70: 5 | Q70: 4 | R70: 5 | S70: 4 | T70: 5 | U70: 23 | V70: 24 | W70: 24 | X70: 25 | Y70: 18 | Z70: 19 | AA70: 17 | AB70: 18 | AC70: 18 | AD70: 18 | AE70: 17 | AF70: 18 | AG70: 18 | AH70: 18 | AI70: 12 | AJ70: 12 | AK70: 11 | AL70: 12 | AM70: 9 | AN70: 9 | AO70: 6 | AP70: 7 | AQ70: 4 | AR70: 5 | AS70: 4 | AT70: 5 | AU70: 3 | AV70: 4 | AW70: 2 | AX70: 3 | AY70: 2 | AZ70: 2 | BA70: 10 | BB70: 1 | BC70: 197 | BD70: 23 | BE70: 18 | BF70: 78 | BG70: 13
B71: 05 | C71: 64 | D71: 5648 | E71: P.S. RAPAZ | F71: 1448 | H71: 715 | I71: 733 | K71: 17 | L71: 17 | M71: 16 | N71: 16 | O71: 15 | P71: 16 | Q71: 15 | R71: 16 | S71: 15 | T71: 16 | U71: 78 | V71: 80 | W71: 81 | X71: 82 | Y71: 60 | Z71: 61 | AA71: 57 | AB71: 59 | AC71: 60 | AD71: 61 | AE71: 57 | AF71: 59 | AG71: 60 | AH71: 62 | AI71: 41 | AJ71: 41 | AK71: 36 | AL71: 37 | AM71: 29 | AN71: 30 | AO71: 21 | AP71: 22 | AQ71: 15 | AR71: 15 | AS71: 15 | AT71: 15 | AU71: 11 | AV71: 11 | AW71: 9 | AX71: 9 | AY71: 7 | AZ71: 8 | BA71: 35 | BB71: 3 | BC71: 658 | BD71: 77 | BE71: 62 | BF71: 262 | BG71: 43
A72: 150902 | C72: 65 | D72: 150902 | E72: DISTRITO ANDAJES | F72: 1045 | H72: 516 | I72: 529 | K72: 3 | L72: 3 | M72: 3 | N72: 4 | O72: 4 | P72: 4 | Q72: 4 | R72: 5 | S72: 4 | T72: 4 | U72: 28 | V72: 29 | W72: 32 | X72: 33 | Y72: 30 | Z72: 31 | AA72: 27 | AB72: 28 | AC72: 32 | AD72: 33 | AE72: 24 | AF72: 24 | AG72: 37 | AH72: 37 | AI72: 28 | AJ72: 29 | AK72: 37 | AL72: 38 | AM72: 25 | AN72: 25 | AO72: 33 | AP72: 33 | AQ72: 30 | AR72: 31 | AS72: 46 | AT72: 47 | AU72: 26 | AV72: 27 | AW72: 38 | AX72: 39 | AY72: 25 | AZ72: 25 | BA72: 10 | BB72: 0 | BC72: 479 | BD72: 24 | BE72: 28 | BF72: 165 | BG72: 13
B73: 05 | C73: 66 | D73: 5654 | E73: P.S. ANDAJES | F73: 1045 | H73: 516 | I73: 529 | K73: 3 | L73: 3 | M73: 3 | N73: 4 | O73: 4 | P73: 4 | Q73: 4 | R73: 5 | S73: 4 | T73: 4 | U73: 28 | V73: 29 | W73: 32 | X73: 33 | Y73: 30 | Z73: 31 | AA73: 27 | AB73: 28 | AC73: 32 | AD73: 33 | AE73: 24 | AF73: 24 | AG73: 37 | AH73: 37 | AI73: 28 | AJ73: 29 | AK73: 37 | AL73: 38 | AM73: 25 | AN73: 25 | AO73: 33 | AP73: 33 | AQ73: 30 | AR73: 31 | AS73: 46 | AT73: 47 | AU73: 26 | AV73: 27 | AW73: 38 | AX73: 39 | AY73: 25 | AZ73: 25 | BA73: 10 | BB73: 0 | BC73: 479 | BD73: 24 | BE73: 28 | BF73: 165 | BG73: 13
A74: 150903 | C74: 67 | D74: 150903 | E74: DISTRITO CAUJUL | F74: 1036 | H74: 513 | I74: 523 | K74: 8 | L74: 8 | M74: 9 | N74: 10 | O74: 10 | P74: 10 | Q74: 11 | R74: 11 | S74: 11 | T74: 11 | U74: 54 | V74: 56 | W74: 44 | X74: 45 | Y74: 38 | Z74: 38 | AA74: 38 | AB74: 39 | AC74: 31 | AD74: 32 | AE74: 35 | AF74: 35 | AG74: 35 | AH74: 36 | AI74: 27 | AJ74: 27 | AK74: 34 | AL74: 34 | AM74: 25 | AN74: 25 | AO74: 20 | AP74: 20 | AQ74: 19 | AR74: 19 | AS74: 26 | AT74: 27 | AU74: 14 | AV74: 15 | AW74: 13 | AX74: 13 | AY74: 11 | AZ74: 12 | BA74: 20 | BB74: 1 | BC74: 490 | BD74: 42 | BE74: 28 | BF74: 191 | BG74: 25
B75: 05 | C75: 68 | D75: 5655 | E75: P.S. CAUJUL | F75: 1036 | H75: 513 | I75: 523 | K75: 8 | L75: 8 | M75: 9 | N75: 10 | O75: 10 | P75: 10 | Q75: 11 | R75: 11 | S75: 11 | T75: 11 | U75: 54 | V75: 56 | W75: 44 | X75: 45 | Y75: 38 | Z75: 38 | AA75: 38 | AB75: 39 | AC75: 31 | AD75: 32 | AE75: 35 | AF75: 35 | AG75: 35 | AH75: 36 | AI75: 27 | AJ75: 27 | AK75: 34 | AL75: 34 | AM75: 25 | AN75: 25 | AO75: 20 | AP75: 20 | AQ75: 19 | AR75: 19 | AS75: 26 | AT75: 27 | AU75: 14 | AV75: 15 | AW75: 13 | AX75: 13 | AY75: 11 | AZ75: 12 | BA75: 20 | BB75: 1 | BC75: 490 | BD75: 42 | BE75: 28 | BF75: 191 | BG75: 25
A76: 150904 | C76: 69 | D76: 150904 | E76: DISTRITO COCHAMARCA | F76: 1607 | H76: 794 | I76: 813 | K76: 14 | L76: 15 | M76: 15 | N76: 16 | O76: 16 | P76: 17 | Q76: 17 | R76: 18 | S76: 18 | T76: 18 | U76: 98 | V76: 99 | W76: 97 | X76: 99 | Y76: 71 | Z76: 73 | AA76: 58 | AB76: 59 | AC76: 38 | AD76: 39 | AE76: 53 | AF76: 55 | AG76: 55 | AH76: 57 | AI76: 47 | AJ76: 48 | AK76: 39 | AL76: 39 | AM76: 30 | AN76: 30 | AO76: 32 | AP76: 33 | AQ76: 26 | AR76: 27 | AS76: 19 | AT76: 19 | AU76: 20 | AV76: 20 | AW76: 17 | AX76: 17 | AY76: 14 | AZ76: 15 | BA76: 34 | BB76: 2 | BC76: 787 | BD76: 93 | BE76: 59 | BF76: 272 | BG76: 42
B77: 03 | C77: 70 | D77: 5783 | E77: P.S. COCHAMARCA | F77: 643 | H77: 317 | I77: 326 | K77: 6 | L77: 6 | M77: 6 | N77: 6 | O77: 6 | P77: 7 | Q77: 7 | R77: 7 | S77: 7 | T77: 7 | U77: 39 | V77: 40 | W77: 38 | X77: 39 | Y77: 28 | Z77: 29 | AA77: 24 | AB77: 24 | AC77: 16 | AD77: 16 | AE77: 21 | AF77: 22 | AG77: 22 | AH77: 23 | AI77: 19 | AJ77: 19 | AK77: 15 | AL77: 16 | AM77: 12 | AN77: 12 | AO77: 13 | AP77: 13 | AQ77: 10 | AR77: 11 | AS77: 7 | AT77: 8 | AU77: 8 | AV77: 8 | AW77: 7 | AX77: 7 | AY77: 6 | AZ77: 6 | BA77: 14 | BB77: 1 | BC77: 315 | BD77: 37 | BE77: 24 | BF77: 109 | BG77: 17
B78: 03 | C78: 71 | D78: 5784 | E78: COLCAPAMPA | F78: 723 | H78: 355 | I78: 368 | K78: 6 | L78: 7 | M78: 7 | N78: 7 | O78: 7 | P78: 8 | Q78: 8 | R78: 8 | S78: 8 | T78: 8 | U78: 44 | V78: 45 | W78: 43 | X78: 44 | Y78: 33 | Z78: 33 | AA78: 26 | AB78: 27 | AC78: 17 | AD78: 17 | AE78: 24 | AF78: 25 | AG78: 25 | AH78: 25 | AI78: 21 | AJ78: 22 | AK78: 17 | AL78: 18 | AM78: 13 | AN78: 14 | AO78: 14 | AP78: 15 | AQ78: 12 | AR78: 12 | AS78: 8 | AT78: 9 | AU78: 9 | AV78: 9 | AW78: 7 | AX78: 8 | AY78: 6 | AZ78: 7 | BA78: 15 | BB78: 1 | BC78: 354 | BD78: 42 | BE78: 27 | BF78: 122 | BG78: 19
B79: 03 | C79: 72 | D79: 5785 | E79: YARUCAYA | F79: 241 | H79: 116 | I79: 125 | K79: 2 | L79: 2 | M79: 2 | N79: 3 | O79: 2 | P79: 3 | Q79: 2 | R79: 3 | S79: 3 | T79: 3 | U79: 14 | V79: 15 | W79: 16 | X79: 16 | Y79: 10 | Z79: 11 | AA79: 8 | AB79: 8 | AC79: 5 | AD79: 6 | AE79: 8 | AF79: 8 | AG79: 8 | AH79: 9 | AI79: 7 | AJ79: 7 | AK79: 6 | AL79: 6 | AM79: 4 | AN79: 5 | AO79: 5 | AP79: 5 | AQ79: 4 | AR79: 4 | AS79: 3 | AT79: 3 | AU79: 3 | AV79: 3 | AW79: 2 | AX79: 3 | AY79: 2 | AZ79: 2 | BA79: 5 | BB79: 0 | BC79: 118 | BD79: 14 | BE79: 8 | BF79: 41 | BG79: 6
A80: 150905 | C80: 73 | D80: 150905 | E80: DISTRITO NAVAN | F80: 1192 | H80: 592 | I80: 600 | K80: 18 | L80: 19 | M80: 15 | N80: 16 | O80: 13 | P80: 13 | Q80: 11 | R80: 11 | S80: 10 | T80: 10 | U80: 43 | V80: 44 | W80: 49 | X80: 49 | Y80: 32 | Z80: 33 | AA80: 50 | AB80: 51 | AC80: 42 | AD80: 43 | AE80: 39 | AF80: 39 | AG80: 42 | AH80: 42 | AI80: 39 | AJ80: 39 | AK80: 35 | AL80: 36 | AM80: 29 | AN80: 30 | AO80: 21 | AP80: 21 | AQ80: 31 | AR80: 31 | AS80: 14 | AT80: 14 | AU80: 32 | AV80: 32 | AW80: 15 | AX80: 15 | AY80: 12 | AZ80: 12 | BA80: 42 | BB80: 3 | BC80: 576 | BD80: 45 | BE80: 27 | BF80: 219 | BG80: 52
B81: 05 | C81: 74 | D81: 5656 | E81: P.S. NAVAN | F81: 1192 | H81: 592 | I81: 600 | K81: 18 | L81: 19 | M81: 15 | N81: 16 | O81: 13 | P81: 13 | Q81: 11 | R81: 11 | S81: 10 | T81: 10 | U81: 43 | V81: 44 | W81: 49 | X81: 49 | Y81: 32 | Z81: 33 | AA81: 50 | AB81: 51 | AC81: 42 | AD81: 43 | AE81: 39 | AF81: 39 | AG81: 42 | AH81: 42 | AI81: 39 | AJ81: 39 | AK81: 35 | AL81: 36 | AM81: 29 | AN81: 30 | AO81: 21 | AP81: 21 | AQ81: 31 | AR81: 31 | AS81: 14 | AT81: 14 | AU81: 32 | AV81: 32 | AW81: 15 | AX81: 15 | AY81: 12 | AZ81: 12 | BA81: 42 | BB81: 3 | BC81: 576 | BD81: 45 | BE81: 27 | BF81: 219 | BG81: 52
A82: 150906 | C82: 75 | D82: 150906 | E82: DISTRITO PACHANGARA | F82: 3423 | H82: 1695 | I82: 1728 | K82: 36 | L82: 36 | M82: 32 | N82: 33 | O82: 30 | P82: 31 | Q82: 29 | R82: 29 | S82: 28 | T82: 29 | U82: 150 | V82: 153 | W82: 173 | X82: 176 | Y82: 139 | Z82: 142 | AA82: 116 | AB82: 118 | AC82: 113 | AD82: 116 | AE82: 103 | AF82: 106 | AG82: 116 | AH82: 118 | AI82: 93 | AJ82: 94 | AK82: 93 | AL82: 94 | AM82: 85 | AN82: 86 | AO82: 87 | AP82: 89 | AQ82: 73 | AR82: 74 | AS82: 67 | AT82: 69 | AU82: 64 | AV82: 65 | AW82: 39 | AX82: 40 | AY82: 29 | AZ82: 30 | BA82: 78 | BB82: 6 | BC82: 1610 | BD82: 164 | BE82: 124 | BF82: 593 | BG82: 97
B83: 05 | C83: 76 | D83: 5657 | E83: C.S. CHURIN | F83: 2739 | H83: 1355 | I83: 1384 | K83: 29 | L83: 29 | M83: 25 | N83: 26 | O83: 24 | P83: 25 | Q83: 23 | R83: 23 | S83: 22 | T83: 23 | U83: 119 | V83: 122 | W83: 138 | X83: 141 | Y83: 111 | Z83: 114 | AA83: 94 | AB83: 96 | AC83: 92 | AD83: 93 | AE83: 83 | AF83: 84 | AG83: 94 | AH83: 96 | AI83: 74 | AJ83: 75 | AK83: 74 | AL83: 75 | AM83: 68 | AN83: 69 | AO83: 69 | AP83: 71 | AQ83: 58 | AR83: 59 | AS83: 53 | AT83: 55 | AU83: 51 | AV83: 52 | AW83: 31 | AX83: 32 | AY83: 23 | AZ83: 24 | BA83: 62 | BB83: 4 | BC83: 1288 | BD83: 132 | BE83: 100 | BF83: 475 | BG83: 77
B84: 05 | C84: 77 | D84: 5658 | E84: P.S. PACHANGARA | F84: 342 | H84: 166 | I84: 176 | K84: 3 | L84: 4 | M84: 3 | N84: 4 | O84: 3 | P84: 3 | Q84: 3 | R84: 3 | S84: 3 | T84: 3 | U84: 15 | V84: 16 | W84: 17 | X84: 18 | Y84: 14 | Z84: 14 | AA84: 11 | AB84: 11 | AC84: 11 | AD84: 11 | AE84: 10 | AF84: 11 | AG84: 11 | AH84: 11 | AI84: 9 | AJ84: 10 | AK84: 9 | AL84: 10 | AM84: 8 | AN84: 9 | AO84: 9 | AP84: 9 | AQ84: 7 | AR84: 8 | AS84: 7 | AT84: 7 | AU84: 6 | AV84: 7 | AW84: 4 | AX84: 4 | AY84: 3 | AZ84: 3 | BA84: 8 | BB84: 1 | BC84: 161 | BD84: 16 | BE84: 12 | BF84: 59 | BG84: 10
B85: 05 | C85: 78 | D85: 5649 | E85: P.S. HUANCAHUASI | F85: 342 | H85: 166 | I85: 176 | K85: 3 | L85: 4 | M85: 3 | N85: 4 | O85: 3 | P85: 3 | Q85: 3 | R85: 3 | S85: 3 | T85: 3 | U85: 15 | V85: 16 | W85: 17 | X85: 18 | Y85: 14 | Z85: 14 | AA85: 11 | AB85: 11 | AC85: 11 | AD85: 11 | AE85: 10 | AF85: 11 | AG85: 11 | AH85: 11 | AI85: 9 | AJ85: 10 | AK85: 9 | AL85: 10 | AM85: 8 | AN85: 9 | AO85: 9 | AP85: 9 | AQ85: 7 | AR85: 8 | AS85: 7 | AT85: 7 | AU85: 6 | AV85: 7 | AW85: 4 | AX85: 4 | AY85: 3 | AZ85: 3 | BA85: 8 | BB85: 1 | BC85: 161 | BD85: 16 | BE85: 12 | BF85: 59 | BG85: 10
C86: 79 | E86: PROVINCIA IHUARI | F86: 1116 | H86: 553 | I86: 563 | K86: 8 | L86: 8 | M86: 10 | N86: 10 | O86: 11 | P86: 11 | Q86: 11 | R86: 12 | S86: 12 | T86: 12 | U86: 58 | V86: 59 | W86: 44 | X86: 44 | Y86: 39 | Z86: 40 | AA86: 45 | AB86: 46 | AC86: 38 | AD86: 39 | AE86: 33 | AF86: 34 | AG86: 33 | AH86: 34 | AI86: 31 | AJ86: 32 | AK86: 35 | AL86: 35 | AM86: 28 | AN86: 29 | AO86: 22 | AP86: 22 | AQ86: 19 | AR86: 19 | AS86: 28 | AT86: 28 | AU86: 19 | AV86: 19 | AW86: 13 | AX86: 14 | AY86: 16 | AZ86: 16 | BA86: 18 | BB86: 1 | BC86: 525 | BD86: 40 | BE86: 31 | BF86: 215 | BG86: 23
C87: 80 | D87: 150600 | E87: P.S. ACOTAMA (IHUARI) | F87: =F86 -> 1116 | H87: =H86 -> 553 | I87: =I86 -> 563 | K87: =K86 -> 8 | L87: 8 | M87: 10 | N87: 10 | O87: 11 | P87: 11 | Q87: 11 | R87: 12 | S87: 12 | T87: 12 | U87: 58 | V87: 59 | W87: 44 | X87: 44 | Y87: 39 | Z87: 40 | AA87: 45 | AB87: 46 | AC87: 38 | AD87: 39 | AE87: 33 | AF87: 34 | AG87: 33 | AH87: 34 | AI87: 31 | AJ87: 32 | AK87: 35 | AL87: 35 | AM87: 28 | AN87: 29 | AO87: 22 | AP87: 22 | AQ87: 19 | AR87: 19 | AS87: 28 | AT87: 28 | AU87: 19 | AV87: 19 | AW87: 13 | AX87: 14 | AY87: 16 | AZ87: 16 | BA87: 18 | BB87: 1 | BC87: 525 | BD87: 40 | BE87: 31 | BF87: 215 | BG87: =BG86 -> 23
A88: 150606 | B88: 03 | C88: 81
C89: 82 | E89: MICRORED HUAURA | F89: 38110 | H89: 18871 | I89: 19239 | K89: 334 | L89: 341 | M89: 323 | N89: 328 | O89: 315 | P89: 322 | Q89: 313 | R89: 319 | S89: 316 | T89: 322 | U89: 1696 | V89: 1729 | W89: 1958 | X89: 1996 | Y89: 1974 | Z89: 2013 | AA89: 1763 | AB89: 1797 | AC89: 1445 | AD89: 1473 | AE89: 1363 | AF89: 1391 | AG89: 1306 | AH89: 1330 | AI89: 1127 | AJ89: 1149 | AK89: 1038 | AL89: 1057 | AM89: 881 | AN89: 898 | AO89: 706 | AP89: 720 | AQ89: 580 | AR89: 592 | AS89: 483 | AT89: 492 | AU89: 424 | AV89: 432 | AW89: 263 | AX89: 269 | AY89: 263 | AZ89: 269 | BA89: 691 | BB89: 52 | BC89: 18854 | BD89: 1877 | BE89: 1913 | BF89: 8236 | BG89: 856
B90: 1 | C90: 83 | E90: MICRORED HUALMAY | F90: 82348 | H90: 40776 | I90: 41572 | K90: 703 | L90: 717 | M90: 668 | N90: 680 | O90: 645 | P90: 657 | Q90: 633 | R90: 646 | S90: 632 | T90: 646 | U90: 3345 | V90: 3410 | W90: 3794 | X90: 3869 | Y90: 3635 | Z90: 3706 | AA90: 3591 | AB90: 3659 | AC90: 3058 | AD90: 3117 | AE90: 2975 | AF90: 3032 | AG90: 2995 | AH90: 3053 | AI90: 2578 | AJ90: 2630 | AK90: 2247 | AL90: 2292 | AM90: 2062 | AN90: 2104 | AO90: 1849 | AP90: 1884 | AQ90: 1539 | AR90: 1569 | AS90: 1244 | AT90: 1268 | AU90: 1009 | AV90: 1029 | AW90: 736 | AX90: 749 | AY90: 838 | AZ90: 855 | BA90: 1449 | BB90: 108 | BC90: 41211 | BD90: 3736 | BE90: 3593 | BF90: 17675 | BG90: 1794
B91: 2 | C91: 84 | E91: MICRORED SAYAN | F91: 28798 | H91: 14256 | I91: 14542 | K91: 488 | L91: 497 | M91: 477 | N91: 486 | O91: 470 | P91: 481 | Q91: 469 | R91: 479 | S91: 469 | T91: 478 | U91: 2418 | V91: 2464 | W91: 2491 | X91: 2542 | Y91: 2161 | Z91: 2205 | AA91: 2113 | AB91: 2154 | AC91: 1927 | AD91: 1964 | AE91: 1820 | AF91: 1855 | AG91: 1831 | AH91: 1868 | AI91: 1392 | AJ91: 1419 | AK91: 1342 | AL91: 1368 | AM91: 1075 | AN91: 1096 | AO91: 900 | AP91: 917 | AQ91: 747 | AR91: 763 | AS91: 643 | AT91: 658 | AU91: 542 | AV91: 554 | AW91: 397 | AX91: 405 | AY91: 334 | AZ91: 341 | BA91: 540 | BB91: 39 | BC91: 13785 | BD91: 1373 | BE91: 1315 | BF91: 5814 | BG91: 669
B92: 3 | C92: 85 | E92: MICRORED VEGUETA | F92: 22031 | H92: 10909 | I92: 11122 | K92: 230 | L92: 235 | M92: 211 | N92: 215 | O92: 197 | P92: 200 | Q92: 187 | R92: 190 | S92: 181 | T92: 185 | U92: 922 | V92: 941 | W92: 1063 | X92: 1083 | Y92: 1073 | Z92: 1095 | AA92: 1036 | AB92: 1057 | AC92: 827 | AD92: 843 | AE92: 750 | AF92: 765 | AG92: 722 | AH92: 736 | AI92: 636 | AJ92: 649 | AK92: 607 | AL92: 619 | AM92: 511 | AN92: 521 | AO92: 441 | AP92: 450 | AQ92: 373 | AR92: 380 | AS92: 298 | AT92: 303 | AU92: 255 | AV92: 260 | AW92: 189 | AX92: 192 | AY92: 200 | AZ92: 203 | BA92: 475 | BB92: 36 | BC92: 10767 | BD92: 1018 | BE92: 1070 | BF92: 4578 | BG92: 588
B93: 4 | C93: 86 | E93: MICRORED CHURIN - OYON | F93: 26600 | H93: 13171 | I93: 13429 | K93: 226 | L93: 231 | M93: 212 | N93: 220 | O93: 206 | P93: 212 | Q93: 203 | R93: 207 | S93: 200 | T93: 205 | U93: 1061 | V93: 1085 | W93: 1130 | X93: 1150 | Y93: 833 | Z93: 851 | AA93: 788 | AB93: 804 | AC93: 788 | AD93: 804 | AE93: 757 | AF93: 770 | AG93: 841 | AH93: 856 | AI93: 641 | AJ93: 653 | AK93: 618 | AL93: 628 | AM93: 547 | AN93: 558 | AO93: 450 | AP93: 456 | AQ93: 411 | AR93: 418 | AS93: 388 | AT93: 397 | AU93: 345 | AV93: 353 | AW93: 257 | AX93: 262 | AY93: 207 | AZ93: 212 | BA93: 593 | BB93: 42 | BC93: 12346 | BD93: 1289 | BE93: 961 | BF93: 4670 | BG93: 735

Sheet Pobla_EESS
D2: POBLACIÓN SEGÚN DISTRITOS Y EE.SS - 2015
D8: SIN MICRORED | K8: MICRORED HUALMAY
D9: DISTRITO | E9: POBLACIÓN | F9: EE.SS | G9: POBLACIÓN | H9: MASCULINO | I9: FEMENINO | K9: DISTRITO | L9: POBLACIÓN | M9: EE.SS | N9: POBLACIÓN | O9: MASCULINO | P9: FEMENINO
D10: HUACHO | E10: =G10 -> 45070 | F10: HOSPITAL HUACHO | G10: =VLOOKUP($F10,Poblacion!$E$8:$I$87,2,FALSE) -> 45070 | H10: =VLOOKUP($F10,Poblacion!$E$8:$I$87,4,FALSE) -> 22316 | I10: =VLOOKUP($F10,Poblacion!$E$8:$I$87,5,FALSE) -> 22754 | K10: HUALMAY | L10: =SUM(N10:N12) -> 28589 | M10: C.S. HUALMAY | N10: =VLOOKUP($M10,Poblacion!$E$8:$I$87,2,FALSE) -> 14295 | O10: =VLOOKUP($M10,Poblacion!$E$8:$I$87,4,FALSE) -> 7077 | P10: =VLOOKUP($M10,Poblacion!$E$8:$I$87,5,FALSE) -> 7218
D11: HUACHO | F11: CLINICA SAN PEDRO | G11: 0 | K11: HUALMAY | M11: P.S.DGO. MANDAMIENTO | N11: =VLOOKUP($M11,Poblacion!$E$8:$I$87,2,FALSE) -> 10006 | O11: =VLOOKUP($M11,Poblacion!$E$8:$I$87,4,FALSE) -> 4954 | P11: =VLOOKUP($M11,Poblacion!$E$8:$I$87,5,FALSE) -> 5052
D12: HUACHO | F12: ESSALUD GUSTAVO LA NATA | G12: 0 | K12: HUALMAY | M12: P.S. CAMPO ALEGRE | N12: =VLOOKUP($M12,Poblacion!$E$8:$I$87,2,FALSE) -> 4288 | O12: =VLOOKUP($M12,Poblacion!$E$8:$I$87,4,FALSE) -> 2125 | P12: =VLOOKUP($M12,Poblacion!$E$8:$I$87,5,FALSE) -> 2163
D13: HUACHO | F13: CLINICA SAN BARTOLOME | G13: 0 | K13: S.MARIA | L13: =SUM(N13:N17) -> 33496 | M13: C.S. SANTA MARIA | N13: =VLOOKUP($M13,Poblacion!$E$8:$I$87,2,FALSE) -> 9379 | O13: =VLOOKUP($M13,Poblacion!$E$8:$I$87,4,FALSE) -> 4644 | P13: =VLOOKUP($M13,Poblacion!$E$8:$I$87,5,FALSE) -> 4735
D14: HUACHO | F14: GOLD ESTANDAR EIRL. | G14: 0 | K14: S.MARIA | M14: P.S. CHONTA | N14: =VLOOKUP($M14,Poblacion!$E$8:$I$87,2,FALSE) -> 5024 | O14: =VLOOKUP($M14,Poblacion!$E$8:$I$87,4,FALSE) -> 2488 | P14: =VLOOKUP($M14,Poblacion!$E$8:$I$87,5,FALSE) -> 2536
D15: CARQUIN | F15: INSITUTO NACIONAL PENITENCIARIO CARQUIN | G15: 0 | K15: S.MARIA | M15: P.S. ZAPATA | N15: =VLOOKUP($M15,Poblacion!$E$8:$I$87,2,FALSE) -> 2680 | O15: =VLOOKUP($M15,Poblacion!$E$8:$I$87,4,FALSE) -> 1327 | P15: =VLOOKUP($M15,Poblacion!$E$8:$I$87,5,FALSE) -> 1353
F16: OTROS ESTABLECIMIENTOS | G16: 0 | K16: S.MARIA | M16: P.S. AMADO VELASQUEZ | N16: =VLOOKUP($M16,Poblacion!$E$8:$I$87,2,FALSE) -> 9044 | O16: =VLOOKUP($M16,Poblacion!$E$8:$I$87,4,FALSE) -> 4478 | P16: =VLOOKUP($M16,Poblacion!$E$8:$I$87,5,FALSE) -> 4566
D17: TOTAL SIN MICRORED | G17: =SUM(G10:G16) -> 45070 | H17: =SUM(H10:H16) -> 22316 | I17: =SUM(I10:I16) -> 22754 | K17: S.MARIA | M17: P.S. SAN BARTOLOME | N17: =VLOOKUP($M17,Poblacion!$E$8:$I$87,2,FALSE) -> 7369 | O17: =VLOOKUP($M17,Poblacion!$E$8:$I$87,4,FALSE) -> 3648 | P17: =VLOOKUP($M17,Poblacion!$E$8:$I$87,5,FALSE) -> 3721
D18: Elaboración: Área de Estadística - RIS Huaura Oyón. | K18: CARQUIN | L18: =SUM(N18) -> 6801 | M18: C.S. CARQUIN | N18: =VLOOKUP($M18,Poblacion!$E$8:$I$87,2,FALSE) -> 6801 | O18: =VLOOKUP($M18,Poblacion!$E$8:$I$87,4,FALSE) -> 3365 | P18: =VLOOKUP($M18,Poblacion!$E$8:$I$87,5,FALSE) -> 3436
K19: HUACHO | L19: =SUM(N19) -> 13462 | M19: P.S. MANZANARES | N19: =VLOOKUP($M19,Poblacion!$E$8:$I$87,2,FALSE) -> 13462 | O19: =VLOOKUP($M19,Poblacion!$E$8:$I$87,4,FALSE) -> 6667 | P19: =VLOOKUP($M19,Poblacion!$E$8:$I$87,5,FALSE) -> 6795
K20: TOTAL MCR HUALMAY | M20: TOTAL MICRORED HUALMAY | N20: =SUM(N10:N19) -> 82348 | O20: =SUM(O10:O19) -> 40773 | P20: =SUM(P10:P19) -> 41575
K21: =D18 -> Elaboración: Área de Estadística - RIS Huaura Oyón.
D24: MICRORED HUAURA | K24: MICRORED VEGUETA
D25: DISTRITO | E25: POBLACIÓN | F25: EE.SS | G25: POBLACIÓN | H25: MASCULINO | I25: FEMENINO | K25: DISTRITO | L25: POBLACIÓN | M25: EE.SS | N25: POBLACIÓN | O25: MASCULINO | P25: FEMENINO
D26: HUAURA | E26: =SUM(G26:G30) -> 35373 | F26: C.S HUAURA | G26: =VLOOKUP($F26,Poblacion!$E$8:$I$87,2,FALSE) -> 15918 | H26: =VLOOKUP($F26,Poblacion!$E$8:$I$87,4,FALSE) -> 7883 | I26: =VLOOKUP($F26,Poblacion!$E$8:$I$87,5,FALSE) -> 8035 | K26: VEGUETA | L26: =SUM(N26:N31) -> 22031 | M26: C.S. VEGUETA | N26: =VLOOKUP($M26,Poblacion!$E$8:$I$87,2,FALSE) -> 6610 | O26: =VLOOKUP($M26,Poblacion!$E$8:$I$87,4,FALSE) -> 3272 | P26: =VLOOKUP($M26,Poblacion!$E$8:$I$87,5,FALSE) -> 3338
D27: HUAURA | F27: P.S. MAT. EL SOCORRO | G27: =VLOOKUP($F27,Poblacion!$E$8:$I$87,2,FALSE) -> 13442 | H27: =VLOOKUP($F27,Poblacion!$E$8:$I$87,4,FALSE) -> 6654 | I27: =VLOOKUP($F27,Poblacion!$E$8:$I$87,5,FALSE) -> 6788 | K27: VEGUETA | M27: P.S. MAZO | N27: =VLOOKUP($M27,Poblacion!$E$8:$I$87,2,FALSE) -> 2423 | O27: =VLOOKUP($M27,Poblacion!$E$8:$I$87,4,FALSE) -> 1200 | P27: =VLOOKUP($M27,Poblacion!$E$8:$I$87,5,FALSE) -> 1223
D28: HUAURA | F28: P.S. HUMAYA | G28: =VLOOKUP($F28,Poblacion!$E$8:$I$87,2,FALSE) -> 3537 | H28: =VLOOKUP($F28,Poblacion!$E$8:$I$87,4,FALSE) -> 1751 | I28: =VLOOKUP($F28,Poblacion!$E$8:$I$87,5,FALSE) -> 1786 | K28: VEGUETA | M28: P.S. PRIMAVERA | N28: =VLOOKUP($M28,Poblacion!$E$8:$I$87,2,FALSE) -> 2864 | O28: =VLOOKUP($M28,Poblacion!$E$8:$I$87,4,FALSE) -> 1420 | P28: =VLOOKUP($M28,Poblacion!$E$8:$I$87,5,FALSE) -> 1444
D29: HUAURA | F29: P.S. VILCAHUAURA | G29: =VLOOKUP($F29,Poblacion!$E$8:$I$87,2,FALSE) -> 2122 | H29: =VLOOKUP($F29,Poblacion!$E$8:$I$87,4,FALSE) -> 1050 | I29: =VLOOKUP($F29,Poblacion!$E$8:$I$87,5,FALSE) -> 1072 | K29: VEGUETA | M29: P.S. JOSE C. MARIATEGUI | N29: =VLOOKUP($M29,Poblacion!$E$8:$I$87,2,FALSE) -> 5948 | O29: =VLOOKUP($M29,Poblacion!$E$8:$I$87,4,FALSE) -> 2945 | P29: =VLOOKUP($M29,Poblacion!$E$8:$I$87,5,FALSE) -> 3003
D30: HUAURA | F30: P.S. PEÑICO | G30: =VLOOKUP($F30,Poblacion!$E$8:$I$87,2,FALSE) -> 354 | H30: =VLOOKUP($F30,Poblacion!$E$8:$I$87,4,FALSE) -> 170 | I30: =VLOOKUP($F30,Poblacion!$E$8:$I$87,5,FALSE) -> 184 | K30: VEGUETA | M30: P.S. MEDIO MUNDO | N30: =VLOOKUP($M30,Poblacion!$E$8:$I$87,2,FALSE) -> 3745 | O30: =VLOOKUP($M30,Poblacion!$E$8:$I$87,4,FALSE) -> 1854 | P30: =VLOOKUP($M30,Poblacion!$E$8:$I$87,5,FALSE) -> 1891
D31: AMBAR | E31: =SUM(G31:G32) -> 2737 | F31: C.S. AMBAR | G31: =VLOOKUP($F31,Poblacion!$E$8:$I$87,2,FALSE) -> 1642 | H31: =VLOOKUP($F31,Poblacion!$E$8:$I$87,4,FALSE) -> 813 | I31: =VLOOKUP($F31,Poblacion!$E$8:$I$87,5,FALSE) -> 829 | K31: VEGUETA | M31: P.S. TIROLER | N31: =VLOOKUP($M31,Poblacion!$E$8:$I$87,2,FALSE) -> 441 | O31: =VLOOKUP($M31,Poblacion!$E$8:$I$87,4,FALSE) -> 215 | P31: =VLOOKUP($M31,Poblacion!$E$8:$I$87,5,FALSE) -> 226
D32: AMBAR | F32: P.S. AYNACA | G32: =VLOOKUP($F32,Poblacion!$E$8:$I$87,2,FALSE) -> 1095 | H32: =VLOOKUP($F32,Poblacion!$E$8:$I$87,4,FALSE) -> 543 | I32: =VLOOKUP($F32,Poblacion!$E$8:$I$87,5,FALSE) -> 552 | K32: TOTAL MCR VEGUETA | N32: =SUM(N26:N31) -> 22031 | O32: =SUM(O26:O31) -> 10906 | P32: =SUM(P26:P31) -> 11125
D33: TOTAL MCR HUAURA | F33: TOTAL MICRORED HUAURA | G33: =SUM(G26:G32) -> 38110 | H33: =SUM(H26:H32) -> 18864 | I33: 19246 | K33: =K21 -> Elaboración: Área de Estadística - RIS Huaura Oyón.
D34: =K21 -> Elaboración: Área de Estadística - RIS Huaura Oyón.
D38: MICRORED SAYAN | K38: MICRORED CHURIN OYÓN
D39: DISTRITO | E39: POBLACIÓN | F39: EE.SS | G39: POBLACIÓN | H39: MASCULINO | I39: FEMENINO | K39: DISTRITO | L39: POBLACIÓN | M39: EE.SS | N39: POBLACIÓN | O39: MASCULINO | P39: FEMENINO
D40: SAYAN | E40: =SUM(G40:G46) -> 24095 | F40: C.S. SAYAN | G40: =VLOOKUP($F40,Poblacion!$E$8:$I$87,2,FALSE) -> 9637 | H40: =VLOOKUP($F40,Poblacion!$E$8:$I$87,4,FALSE) -> 4770 | I40: =VLOOKUP($F40,Poblacion!$E$8:$I$87,5,FALSE) -> 4867 | K40: PACHANGARA | L40: =SUM(N40:N42) -> 3423 | M40: C.S. CHURIN | N40: =VLOOKUP(M40,Poblacion!$E$5:$I$88,2,FALSE) -> 2739 | O40: =VLOOKUP(M40,Poblacion!$E$5:$I$88,4,FALSE) -> 1355 | P40: =VLOOKUP(M40,Poblacion!$E$5:$I$88,5,FALSE) -> 1384
D41: SAYAN | F41: P.S. 9 DE OCTUBRE | G41: =VLOOKUP($F41,Poblacion!$E$8:$I$87,2,FALSE) -> 5060 | H41: =VLOOKUP($F41,Poblacion!$E$8:$I$87,4,FALSE) -> 2507 | I41: =VLOOKUP($F41,Poblacion!$E$8:$I$87,5,FALSE) -> 2553 | K41: PACHANGARA | M41: P.S. PACHANGARA | N41: =VLOOKUP(M41,Poblacion!$E$5:$I$88,2,FALSE) -> 342 | O41: =VLOOKUP(M41,Poblacion!$E$5:$I$88,4,FALSE) -> 166 | P41: =VLOOKUP(M41,Poblacion!$E$5:$I$88,5,FALSE) -> 176
D42: SAYAN | F42: P.S. CHAMBARA | G42: =VLOOKUP($F42,Poblacion!$E$8:$I$87,2,FALSE) -> 964 | H42: =VLOOKUP($F42,Poblacion!$E$8:$I$87,4,FALSE) -> 476 | I42: =VLOOKUP($F42,Poblacion!$E$8:$I$87,5,FALSE) -> 488 | K42: PACHANGARA | M42: P.S. HUANCAHUASI | N42: =VLOOKUP(M42,Poblacion!$E$5:$I$88,2,FALSE) -> 342 | O42: =VLOOKUP(M42,Poblacion!$E$5:$I$88,4,FALSE) -> 166 | P42: =VLOOKUP(M42,Poblacion!$E$5:$I$88,5,FALSE) -> 176
D43: SAYAN | F43: P.S. LA MERCED | G43: =VLOOKUP($F43,Poblacion!$E$8:$I$87,2,FALSE) -> 1205 | H43: =VLOOKUP($F43,Poblacion!$E$8:$I$87,4,FALSE) -> 597 | I43: =VLOOKUP($F43,Poblacion!$E$8:$I$87,5,FALSE) -> 608 | K43: OYON | L43: =SUM(N43:N47) -> 14479 | M43: C.S. OYON | N43: =VLOOKUP(M43,Poblacion!$E$5:$I$88,2,FALSE) -> 11004 | O43: =VLOOKUP(M43,Poblacion!$E$5:$I$88,4,FALSE) -> 5448 | P43: =VLOOKUP(M43,Poblacion!$E$5:$I$88,5,FALSE) -> 5556
D44: SAYAN | F44: P.S. LA VILLA | G44: =VLOOKUP($F44,Poblacion!$E$8:$I$87,2,FALSE) -> 6265 | H44: =VLOOKUP($F44,Poblacion!$E$8:$I$87,4,FALSE) -> 3102 | I44: =VLOOKUP($F44,Poblacion!$E$8:$I$87,5,FALSE) -> 3163 | K44: OYON | M44: P.S. MALLAY | N44: =VLOOKUP(M44,Poblacion!$E$5:$I$88,2,FALSE) -> 1448 | O44: =VLOOKUP(M44,Poblacion!$E$5:$I$88,4,FALSE) -> 716 | P44: =VLOOKUP(M44,Poblacion!$E$5:$I$88,5,FALSE) -> 732
D45: SAYAN | F45: P.S. EL AHORCADO | G45: =VLOOKUP($F45,Poblacion!$E$8:$I$87,2,FALSE) -> 482 | H45: =VLOOKUP($F45,Poblacion!$E$8:$I$87,4,FALSE) -> 234 | I45: =VLOOKUP($F45,Poblacion!$E$8:$I$87,5,FALSE) -> 248 | K45: OYON | M45: P.S. NAVA | N45: =VLOOKUP(M45,Poblacion!$E$5:$I$88,2,FALSE) -> 145 | O45: =VLOOKUP(M45,Poblacion!$E$5:$I$88,4,FALSE) -> 65 | P45: =VLOOKUP(M45,Poblacion!$E$5:$I$88,5,FALSE) -> 80
D46: SAYAN | F46: P.S. LA UNION | G46: =VLOOKUP($F46,Poblacion!$E$8:$I$87,2,FALSE) -> 482 | H46: =VLOOKUP($F46,Poblacion!$E$8:$I$87,4,FALSE) -> 234 | I46: =VLOOKUP($F46,Poblacion!$E$8:$I$87,5,FALSE) -> 248 | K46: OYON | M46: P.S. TINTA | N46: =VLOOKUP(M46,Poblacion!$E$5:$I$88,2,FALSE) -> 434 | O46: =VLOOKUP(M46,Poblacion!$E$5:$I$88,4,FALSE) -> 210 | P46: =VLOOKUP(M46,Poblacion!$E$5:$I$88,5,FALSE) -> 224
D47: L.PRADO | E47: =SUM(G47:G50) -> 1980 | F47: P.S. AUQUIMARCA | G47: =VLOOKUP($F47,Poblacion!$E$8:$I$87,2,FALSE) -> 99 | H47: =VLOOKUP($F47,Poblacion!$E$8:$I$87,4,FALSE) -> 47 | I47: =VLOOKUP($F47,Poblacion!$E$8:$I$87,5,FALSE) -> 52 | K47: OYON | M47: P.S. RAPAZ | N47: =VLOOKUP(M47,Poblacion!$E$5:$I$88,2,FALSE) -> 1448 | O47: =VLOOKUP(M47,Poblacion!$E$5:$I$88,4,FALSE) -> 715 | P47: =VLOOKUP(M47,Poblacion!$E$5:$I$88,5,FALSE) -> 733
D48: L.PRADO | F48: P.S. PARAN | G48: =VLOOKUP($F48,Poblacion!$E$8:$I$87,2,FALSE) -> 990 | H48: =VLOOKUP($F48,Poblacion!$E$8:$I$87,4,FALSE) -> 489 | I48: =VLOOKUP($F48,Poblacion!$E$8:$I$87,5,FALSE) -> 501 | K48: ANDAJES | L48: =N48 -> 1045 | M48: P.S. ANDAJES | N48: =VLOOKUP(M48,Poblacion!$E$5:$I$88,2,FALSE) -> 1045 | O48: =VLOOKUP(M48,Poblacion!$E$5:$I$88,4,FALSE) -> 516 | P48: =VLOOKUP(M48,Poblacion!$E$5:$I$88,5,FALSE) -> 529
D49: L.PRADO | F49: P.S. SANTA CRUZ | G49: =VLOOKUP($F49,Poblacion!$E$8:$I$87,2,FALSE) -> 436 | H49: =VLOOKUP($F49,Poblacion!$E$8:$I$87,4,FALSE) -> 213 | I49: =VLOOKUP($F49,Poblacion!$E$8:$I$87,5,FALSE) -> 223 | K49: CAUJUL | L49: =N49 -> 1036 | M49: P.S. CAUJUL | N49: =VLOOKUP(M49,Poblacion!$E$5:$I$88,2,FALSE) -> 1036 | O49: =VLOOKUP(M49,Poblacion!$E$5:$I$88,4,FALSE) -> 513 | P49: =VLOOKUP(M49,Poblacion!$E$5:$I$88,5,FALSE) -> 523
D50: L.PRADO | F50: P.S. HUANANGUI | G50: =VLOOKUP($F50,Poblacion!$E$8:$I$87,2,FALSE) -> 455 | H50: =VLOOKUP($F50,Poblacion!$E$8:$I$87,4,FALSE) -> 222 | I50: =VLOOKUP($F50,Poblacion!$E$8:$I$87,5,FALSE) -> 233 | K50: NAVAN | L50: 1192 | M50: P.S. NAVAN | N50: =VLOOKUP(M50,Poblacion!$E$5:$I$88,2,FALSE) -> 1192 | O50: =VLOOKUP(M50,Poblacion!$E$5:$I$88,4,FALSE) -> 592 | P50: =VLOOKUP(M50,Poblacion!$E$5:$I$88,5,FALSE) -> 600
D51: COCHAMARCA | E51: =SUM(G51:G53) -> 1607 | F51: P.S. COCHAMARCA | G51: =VLOOKUP($F51,Poblacion!$E$8:$I$87,2,FALSE) -> 643 | H51: =VLOOKUP($F51,Poblacion!$E$8:$I$87,4,FALSE) -> 317 | I51: =VLOOKUP($F51,Poblacion!$E$8:$I$87,5,FALSE) -> 326 | K51: CHECRAS | L51: 1781 | M51: P.S. PUÑUN | N51: =VLOOKUP(M51,Poblacion!$E$5:$I$88,2,FALSE) -> 1781 | O51: =VLOOKUP(M51,Poblacion!$E$5:$I$88,4,FALSE) -> 880 | P51: =VLOOKUP(M51,Poblacion!$E$5:$I$88,5,FALSE) -> 901
D52: COCHAMARCA | F52: COLCAPAMPA | G52: =VLOOKUP($F52,Poblacion!$E$8:$I$87,2,FALSE) -> 723 | H52: =VLOOKUP($F52,Poblacion!$E$8:$I$87,4,FALSE) -> 355 | I52: =VLOOKUP($F52,Poblacion!$E$8:$I$87,5,FALSE) -> 368 | K52: PACCHO | L52: =SUM(N52:N55) -> 2189 | M52: P.S. PACCHO | N52: =VLOOKUP(M52,Poblacion!$E$5:$I$88,2,FALSE) -> 811 | O52: =VLOOKUP(M52,Poblacion!$E$5:$I$88,4,FALSE) -> 399 | P52: =VLOOKUP(M52,Poblacion!$E$5:$I$88,5,FALSE) -> 412
D53: COCHAMARCA | F53: YARUCAYA | G53: =VLOOKUP($F53,Poblacion!$E$8:$I$87,2,FALSE) -> 241 | H53: =VLOOKUP($F53,Poblacion!$E$8:$I$87,4,FALSE) -> 116 | I53: =VLOOKUP($F53,Poblacion!$E$8:$I$87,5,FALSE) -> 125 | K53: PACCHO | M53: P.S. LACSANGA | N53: =VLOOKUP(M53,Poblacion!$E$5:$I$88,2,FALSE) -> 722 | O53: =VLOOKUP(M53,Poblacion!$E$5:$I$88,4,FALSE) -> 359 | P53: =VLOOKUP(M53,Poblacion!$E$5:$I$88,5,FALSE) -> 363
D54: IHUARI - ACOTAMA | E54: =G54 -> 1116 | F54: P.S. ACOTAMA (IHUARI) | G54: =VLOOKUP($F54,Poblacion!$E$8:$I$87,2,FALSE) -> 1116 | H54: =VLOOKUP($F54,Poblacion!$E$8:$I$87,4,FALSE) -> 553 | I54: =VLOOKUP($F54,Poblacion!$E$8:$I$87,5,FALSE) -> 563 | K54: PACCHO | M54: P.S. AYARANGA | N54: =VLOOKUP(M54,Poblacion!$E$5:$I$88,2,FALSE) -> 328 | O54: =VLOOKUP(M54,Poblacion!$E$5:$I$88,4,FALSE) -> 157 | P54: =VLOOKUP(M54,Poblacion!$E$5:$I$88,5,FALSE) -> 171
D55: TOTAL MICRORED SAYAN | G55: =SUM(G40:G54) -> 28798 | H55: 14232 | I55: =SUM(I40:I54) -> 14566 | K55: PACCHO | M55: P.S. MUZGA | N55: =VLOOKUP(M55,Poblacion!$E$5:$I$88,2,FALSE) -> 328 | O55: =VLOOKUP(M55,Poblacion!$E$5:$I$88,4,FALSE) -> 157 | P55: =VLOOKUP(M55,Poblacion!$E$5:$I$88,5,FALSE) -> 171
D56: =K33 -> Elaboración: Área de Estadística - RIS Huaura Oyón. | K56: S.LEONOR | L56: =SUM(N56:N58) -> 1455 | M56: P.S. CHIUCHIN | N56: =VLOOKUP(M56,Poblacion!$E$5:$I$88,2,FALSE) -> 917 | O56: =VLOOKUP(M56,Poblacion!$E$5:$I$88,4,FALSE) -> 453 | P56: =VLOOKUP(M56,Poblacion!$E$5:$I$88,5,FALSE) -> 464
K57: S.LEONOR | M57: P.S. PARQUIN | N57: =VLOOKUP(M57,Poblacion!$E$5:$I$88,2,FALSE) -> 378 | O57: =VLOOKUP(M57,Poblacion!$E$5:$I$88,4,FALSE) -> 184 | P57: =VLOOKUP(M57,Poblacion!$E$5:$I$88,5,FALSE) -> 194
K58: S.LEONOR | M58: P.S. JUCUL | N58: =VLOOKUP(M58,Poblacion!$E$5:$I$88,2,FALSE) -> 160 | O58: =VLOOKUP(M58,Poblacion!$E$5:$I$88,4,FALSE) -> 76 | P58: =VLOOKUP(M58,Poblacion!$E$5:$I$88,5,FALSE) -> 84
K59: TOTAL MICRORED CHURIN - OYON | N59: =SUM(N40:N58) -> 26600 | O59: =SUM(O40:O58) -> 13127 | P59: 13473
K60: =K33 -> Elaboración: Área de Estadística - RIS Huaura Oyón.
